Workbook

Sheet Loan Affordability Calculator
A1: Loan Affordability Calculator
A3: =TODAY() -> 2019-06-26
A4: Number of Borrowers
A5: Number of Loans
A6: Loan 1 | D6: Loan 2
A7: Loan amount | B7: 0 | D7: Loan amount | F7: 0
A8: Loan Term (Yrs) | B8: 0 | D8: Loan Term (Yrs) | F8: 0
A9: Interest Only Term (Yrs) | D9: Interest Only Term (Yrs)
A10: =IF(B10>0,(-PMT('Affordability Rate Adjustment'!Q7/12,'Loan Affordability Calculator'!B10*12,'Loan Affordability Calculator'!B7)),0) -> 0 | B10: =Loan1_Term__Yrs-('General list options'!$E$7) -> 0 | D10: =IF(F10>0,(-PMT('Affordability Rate Adjustment'!Q7/12,'Loan Affordability Calculator'!F10*12,'Loan Affordability Calculator'!F7)),0) -> 0 | F10: =Loan2_Term__Yrs - ('General list options'!$E$8) -> 0
A11: Loan 3 | D11: Loan 4
A12: Loan amount | B12: 0 | D12: Loan amount | F12: 0
A13: Loan Term (Yrs) | B13: 0 | D13: Loan Term (Yrs) | F13: 0
A14: Interest Only Term (Yrs) | D14: Interest Only Term (Yrs)
A15: =IF(B15>0,(-PMT('Affordability Rate Adjustment'!Q7/12,'Loan Affordability Calculator'!B15*12,'Loan Affordability Calculator'!B12)),0) -> 0 | B15: =Loan3_Term__Yrs - ('General list options'!$E$9) -> 0 | D15: =IF(F15>0,(-PMT('Affordability Rate Adjustment'!Q7/12,'Loan Affordability Calculator'!F15*12,'Loan Affordability Calculator'!F12)),0) -> 0 | F15: =Loan4_Term__Yrs - ('General list options'!$E$10) -> 0
A16: Total Loan Amount | B16: =Loan_amount1+Loan_amount2+Loan_amount3+Loan_amount4 -> 0
B17: =(B10+F10+B15+F15)/('General list options'!$D$2) -> 0
A18: First Borrower
A19: 1.Income
B20: 0 | D20: per,
B21: 0 | C21: ` | D21: per,
B22: 0 | D22: per,
A24: Borrower 1 total assessable income | B24: ='Income Data'!U33 -> 0
A26: 2. General Living Arangement Expenses
B27: Spouse | C27: # dependants | E27: No. of Land/Holiday Home properties
A29: General Living Expenses | B29: ='General Living Expenses'!C55 -> 1354
A31: 3. Other Living Expenses & Liabilities
B32: 0 | D32: =IF('Other Expenses'!C3=1,"Beyond Bank applies minimum rent dependant on the property location. Please ensure the rent entered meets this minimum amount","") ->  | F32: =IF('Other Expenses'!C3=2,IF('Other Expenses'!B8<650,"Beyond Bank applies minimum board of $150 per week, please update the expense with the minimum required","")) -> FALSE
B33: 0
B34: 0
A36: Mortgage Repayments (apart from this loan) | B36: ='Affordability Rate Adjustment'!H12 -> 0 | C36: Click here to go to the Affordability Rate Adjustment Calculator
A37: Car/Personal Loan Repayments | B37: 0
A38: Combined Limits of all Credit Cards & Store Accts | B38: 0
A39: Combined Limits of all Overdrafts | B39: 0
A40: Combined Limits of Beyond Bank Credit Cards | B40: 0
A41: Other debts | B41: 0
A42: Total Liabilities & Expenses | B42: =B36+'Other Expenses'!L15 -> 0
A44: =IF('General Living Expenses'!B2=1,"No Second Borrower, please proceed to the Affordability Assessment","Second Borrower") -> No Second Borrower, please proceed to the Affordability Assessment
A46: 1.Income
B47: 0 | D47: per,
B48: 0 | D48: per,
B49: 0 | D49: per,
A51: Total assessable net income per month: | B51: ='Income Data'!W33 -> 0
A53: 2. General Living Arangement Expenses
B54: Spouse | C54: # dependants | E54: No. of Land/Holiday Home properties
A56: General Living Expenses | B56: ='General Living Expenses'!I55 -> 0
A58: 3. Other Living Expenses & Liabilities
B59: 0 | D59: =IF('Other Expenses'!C24=1,"Beyond Bank applies minimum rent dependant on the property location. Please ensure the rent entered meets this minimum amount","") ->  | F59: =IF('Other Expenses'!C24=2,IF('Other Expenses'!B29<650,"Beyond Bank applies minimum board of $150 per week, please update the expense with the minimum required",""),"") -> 
B60: 0
B61: 0
A63: Mortgage Repayments (apart from this loan) | B63: ='Affordability Rate Adjustment'!H34 -> 0 | C63: Click here to go to the Affordability Rate Adjustment Calculator
A64: Car/Personal Loan Repayments | B64: 0
A65: Combined Limits of all Credit Cards & Store Accts | B65: 0
A66: Combined Limits of all Overdrafts | B66: 0
A67: Combined Limits of Beyond Bank Credit Cards | B67: 0
A68: Other debts | B68: 0
A69: Total Liabilities & Expenses | B69: =B63+'Other Expenses'!L36 -> 0
A71: =IF('General Living Expenses'!B2=1,"No third borrower, please proceed to the Affordability Assessment",IF('General Living Expenses'!B2=2,"No third borrower, please proceed to the Affordability Assessment","Third Borrower")) -> No third borrower, please proceed to the Affordability Assessment
A73: 1.Income
B74: 0 | D74: per,
B75: 0 | D75: per,
B76: 0 | D76: per,
A78: Total assessable net income per month: | B78: ='Income Data'!Y33 -> 0
A80: 2. General Living Arangement Expenses
B81: Spouse | C81: # dependants | E81: No. of Land/Holiday Home properties
A83: General Living Expenses | B83: ='General Living Expenses'!O55 -> 0
A85: 3. Other Living Expenses & Liabilities
B86: 0 | D86: =IF('Other Expenses'!C44=1,"Beyond Bank applies minimum rent dependant on the property location. Please ensure the rent entered meets this minimum amount","") ->  | F86: =IF('Other Expenses'!C44=2,IF('Other Expenses'!B49<650,"Beyond Bank applies minimum board of $150 per week, please update the expense with the minimum required",""),"") -> 
B87: 0
B88: 0
A89: Mortgage Repayments (apart from this loan) | B89: ='Affordability Rate Adjustment'!H53 -> 0 | C89: Click here to go to the Affordability Rate Adjustment Calculator
A90: Car/Personal Loan Repayments | B90: 0
A91: Combined Limits of all Credit Cards & Store Accts | B91: 0
A92: Combined Limits of all Overdrafts | B92: 0
A93: Combined Limits of Beyond Bank Credit Cards | B93: 0
A94: Other debts | B94: 0
A95: Total Liabilities & Expenses | B95: =B89+'Other Expenses'!L56 -> 0
A96: =IF('General Living Expenses'!B2=4,"Fourth Borrower","No fourth borrower, please proceed to the Affordability Assessment") -> No fourth borrower, please proceed to the Affordability Assessment
A98: 1.Income
B99: 0 | D99: per,
B100: 0 | D100: per,
B101: 0 | D101: per,
A103: Total assessable net income per month: | B103: ='Income Data'!AA33 -> 0
A105: 2. General Living Arangement Expenses
B106: Spouse | C106: # dependants | E106: No. of Land/Holiday Home properties
A108: General Living Expenses | B108: ='General Living Expenses'!U55 -> 0
A110: 3. Other Living Expenses & Liabilities
B111: 0 | D111: =IF('Other Expenses'!C64=1,"Beyond Bank applies minimum rent dependant on the property location. Please ensure the rent entered meets this minimum amount","") ->  | F111: =IF('Other Expenses'!C64=2,IF('Other Expenses'!B69<650,"Beyond Bank applies minimum board of $150 per week, please update the expense with the minimum required",""),"") -> 
B112: 0
B113: 0
A114: Mortgage Repayments (apart from this loan) | B114: ='Affordability Rate Adjustment'!H72 -> 0 | C114: Click here to go to the Affordability Rate Adjustment Calculator
A115: Car/Personal Loan Repayments | B115: 0
A116: Combined Limits of all Credit Cards & Store Accts | B116: 0
A117: Combined Limits of all Overdrafts | B117: 0
A118: Combined Limits of Beyond Bank Credit Cards | B118: 0
A119: Other debts | B119: 0
A120: Total Liabilities & Expenses | B120: =B114 +'Other Expenses'!L76 -> 0
A122: Affordability Assessment
A123: 1. Total Borrower Assessable Income | B123: =B24+B51+B78+B103 -> 0
A124: 2. Total Borrower Living Expenses | B124: =B29+B56+B83+B108 -> 1354
A125: 3. Total Borrower Other Expenses/Liabilities | B125: =B42+B69+B95+B120 -> 0
A126: Disposable income after expenses | B126: =B123-B124-B125 -> -1354
A127: Monthly loan repayment (this loan) | B127: =A10+D10+A15+D15 -> 0
A128: Disposable monthly income after expenses and new loan repayment | B128: =B126-B127 -> -1354 | C128: =IF(B128>=200,"LOAN IS AFFORDABLE","LOAN IS NOT AFFORDABLE") -> LOAN IS NOT AFFORDABLE
A131: Maximum borrowing capacity | B131: =-PV('Affordability Rate Adjustment'!$Q$7/12,'Loan Affordability Calculator'!$B$17*12,('Loan Affordability Calculator'!$B$126-200))-250 -> -250

Sheet Affordability Rate Adjustment
A1: Affordability Rate Adjustment (ARA) Calculator
A2: Notes: Loan Amounts should Include amount available for redraw. Repayments displayed are per month.
A3: Calculator to be used for all mortgage-secured products including secured line of credit facilities and Interest Only loans
A4: Insert current Loan Amount & actual repayment (entries in red)
A6: Borrower 1 - Other Mortgage Repayments | N6: Number | O6: Current | Q6: Affordability Rate
A7: Number of Mortgage Loans | C7: Click here to return to the Loan Affordability Calculator | G7: The following amount will be used in the calculation of loan affordability | N7: Nil | O7: 1 | Q7: 0.0725
N8: 1
A9: =IF(O7=1,"Not Required","Loan 1") -> Not Required | D9: =IF(O7=1,"Not Required","Loan 2") -> Not Required | N9: 2
A10: Loan Amount | B10: 0 | D10: Loan Amount | E10: 0 | N10: 3
A11: Term (months) | B11: 360 | D11: Term (months) | E11: 360 | N11: 4
A12: Affordability Rate | B12: =Q7 -> 0.0725 | D12: Affordability Rate | E12: =Q7 -> 0.0725 | G12: ARA | H12: =(B15+E15+B23+E23) -> 0
A13: Affordability Repayment | B13: =-PMT(B12/12,B11,B10) -> 0 | D13: Affordability Repayment | E13: =-PMT(E12/12,E11,E10) -> 0
A14: Actual Repayment (monthly) | B14: 0 | D14: Actual Repayment (monthly) | E14: 0
A15: Repayment Amount Used | B15: =MAXA(B13,B14) -> 0 | D15: Repayment Amount Used | E15: =MAXA(E13,E14) -> 0
A17: =IF(O7<3,"Not Required","Loan 3") -> Not Required | D17: =IF(O7<4,"Not Required","Loan 4") -> Not Required
A18: Loan Amount | B18: 0 | D18: Loan Amount | E18: 0
A19: Term (months) | B19: 360 | D19: Term (months) | E19: 360
A20: Affordability Rate | B20: =Q7 -> 0.0725 | D20: Affordability Rate | E20: =Q7 -> 0.0725
A21: Affordability Repayment | B21: =-PMT(B20/12,B19,B18) -> 0 | D21: Affordability Repayment | E21: =-PMT(E20/12,E19,E18) -> 0
A22: Actual Repayment (monthly) | B22: 0 | D22: Actual Repayment (monthly) | E22: 0
A23: Repayment Amount Used | B23: =MAXA(B21,B22) -> 0 | D23: Repayment Amount Used | E23: =MAXA(E21,E22) -> 0
A25: =IF('General Living Expenses'!B2<2,"No Second Borrower","Borrower 2 - Other Mortgage Loan Products") -> No Second Borrower
A26: Number of Mortgage Loans | C26: Click here to return to the Loan Affordability Calculator
A28: =IF('General Living Expenses'!B2<2,"Not Required",IF('Affordability Rate Adjustment'!O30<2,"Not Required","Loan 1")) -> Not Required | D28: Loan 2
A29: Loan Amount | B29: 0 | D29: Loan Amount | E29: 0 | G29: The following amount will be used in the calculation of loan affordability | N29: Number | O29: Current
A30: Term (months) | B30: 360 | D30: Term (months) | E30: 360 | N30: Nil | O30: 1
A31: Affordability Rate | B31: =Q7 -> 0.0725 | D31: Affordability Rate | E31: =Q7 -> 0.0725 | N31: 1
A32: Affordability Repayment | B32: =-PMT(B31/12,B30,B29) -> 0 | D32: Affordability Repayment | E32: =-PMT(E31/12,E30,E29) -> 0 | N32: 2
A33: Actual Repayment (monthly) | B33: 0 | D33: Actual Repayment (monthly) | E33: 0 | N33: 3
A34: Repayment Amount Used | B34: =MAXA(B32,B33) -> 0 | D34: Repayment Amount Used | E34: =MAXA(E32,E33) -> 0 | G34: ARA | H34: =B34+E34+B42+E42 -> 0 | N34: 4
A36: Loan 3 | D36: Loan 4
A37: Loan Amount | B37: 0 | D37: Loan Amount | E37: 0
A38: Term (months) | B38: 360 | D38: Term (months) | E38: 360
A39: Affordability Rate | B39: =Q7 -> 0.0725 | D39: Affordability Rate | E39: =Q7 -> 0.0725
A40: Affordability Repayment | B40: =-PMT(B39/12,B38,B37) -> 0 | D40: Affordability Repayment | E40: =-PMT(E39/12,E38,E37) -> 0
A41: Actual Repayment (monthly) | B41: 0 | D41: Actual Repayment (monthly) | E41: 0
A42: Repayment Amount Used | B42: =MAXA(B40,B41) -> 0 | D42: Repayment Amount Used | E42: =MAXA(E40,E41) -> 0
A44: =IF('General Living Expenses'!B2<3,"No Third Borrower","Borrower 3 - Other Mortgage Loan Products") -> No Third Borrower
A45: Number of Mortgage Loans | C45: Click here to return to the Loan Affordability Calculator
A47: Loan 1 | D47: Loan 2
A48: Loan Amount | B48: 0 | D48: Loan Amount | E48: 0 | G48: The following amount will be used in the calculation of loan affordability | N48: Number | O48: Current
A49: Term (months) | B49: 360 | D49: Term (months) | E49: 360 | N49: Nil | O49: 1
A50: Affordability Rate | B50: =$Q$7 -> 0.0725 | D50: Affordability Rate | E50: =$Q$7 -> 0.0725 | N50: 1
A51: Affordability Repayment | B51: =-PMT(B50/12,B49,B48) -> 0 | D51: Affordability Repayment | E51: =-PMT(E50/12,E49,E48) -> 0 | N51: 2
A52: Actual Repayment (monthly) | B52: 0 | D52: Actual Repayment (monthly) | E52: 0 | N52: 3
A53: Repayment Amount Used | B53: =MAXA(B51,B52) -> 0 | D53: Repayment Amount Used | E53: =MAXA(E51,E52) -> 0 | G53: ARA | H53: =(B53+E53+B61+E61) -> 0 | N53: 4
A55: Loan 3 | D55: Loan 4
A56: Loan Amount | B56: 0 | D56: Loan Amount | E56: 0
A57: Term (months) | B57: 360 | D57: Term (months) | E57: 360
A58: Affordability Rate | B58: =$Q$7 -> 0.0725 | D58: Affordability Rate | E58: =$Q$7 -> 0.0725
A59: Affordability Repayment | B59: =-PMT(B58/12,B57,B56) -> 0 | D59: Affordability Repayment | E59: =-PMT(E58/12,E57,E56) -> 0
A60: Actual Repayment (monthly) | B60: 0 | D60: Actual Repayment (monthly) | E60: 0
A61: Repayment Amount Used | B61: =MAXA(B59,B60) -> 0 | D61: Repayment Amount Used | E61: =MAXA(E59,E60) -> 0
A63: =IF('General Living Expenses'!B2<4,"No Fourth Borrower","Borrower 4 - Other Mortgage Loan Products") -> No Fourth Borrower
A64: Number of Mortgage Loans | C64: Click here to return to the Loan Affordability Calculator
A66: Loan 1 | D66: Loan 2
A67: Loan Amount | B67: 0 | D67: Loan Amount | E67: 0 | G67: The following amount will be used in the calculation of loan affordability | N67: Number | O67: Current
A68: Term (months) | B68: 360 | D68: Term (months) | E68: 360 | N68: Nil | O68: 1
A69: Affordability Rate | B69: =$Q$7 -> 0.0725 | D69: Affordability Rate | E69: =$Q$7 -> 0.0725 | N69: 1
A70: Affordability Repayment | B70: =-PMT(B69/12,B68,B67) -> 0 | D70: Affordability Repayment | E70: =-PMT(E69/12,E68,E67) -> 0 | N70: 2
A71: Actual Repayment (monthly) | B71: 0 | D71: Actual Repayment (monthly) | E71: 0 | N71: 3
A72: Repayment Amount Used | B72: =MAXA(B70,B71) -> 0 | D72: Repayment Amount Used | E72: =MAXA(E70,E71) -> 0 | G72: ARA | H72: =(B72+E72+B80+E80) -> 0 | N72: 4
A74: Loan 3 | D74: Loan 4
A75: Loan Amount | B75: 0 | D75: Loan Amount | E75: 0
A76: Term (months) | B76: 360 | D76: Term (months) | E76: 360
A77: Affordability Rate | B77: =$Q$7 -> 0.0725 | D77: Affordability Rate | E77: =$Q$7 -> 0.0725
A78: Affordability Repayment | B78: =-PMT(B77/12,B76,B75) -> 0 | D78: Affordability Repayment | E78: =-PMT(E77/12,E76,E75) -> 0
A79: Actual Repayment (monthly) | B79: 0 | D79: Actual Repayment (monthly) | E79: 0
A80: Repayment Amount Used | B80: =MAXA(B78,B79) -> 0 | D80: Repayment Amount Used | E80: =MAXA(E78,E79) -> 0

Sheet Policy Quick Reference Guide (hidden)
A3: Minimum Rent/Boarder Expense
A5: Board
A6: $150 per week | B6: All Locations
A8: Rent
A9: Region | B9: Mid Range Median Rent per Week
A10: ACT (including Queanbeyan) | B10: 405

Sheet Income Data (hidden)
B1: Borrower 1 Income Type
B2: Income Type 1 | E2: Income Type 2 | H2: Income Type 3 | L2: Borrower 1 Net or Gross | U2: Primary Income Net (converted to Monthly - | Y2: Primary Income Gross | Z2: Secondary Income Net (converts to Monthly) | AD2: Secondary Income Gross | AE2: Self Employed Net | AI2: Self Employed Gross | AJ2: Rent Metro | AN2: Rent National | AR2: Rent High Density | AV2: Super | AZ2: Government benefits | BD2: Child Support
B3: Primary Employment | C3: 1 | D3: =IF(C3=1,'Loan Affordability Calculator'!B20,0) -> 0 | E3: Secondary Employment | F3: 9 | G3: =IF(F3=1,'Loan Affordability Calculator'!B21,0) -> 0 | H3: Secondary Employment | I3: 9 | J3: =IF(I3=1,'Loan Affordability Calculator'!B22,0) -> 0 | L3: Income 1 | N3: Income 2 | P3: Income 3 | R3: Response | U3: Weekly | V3: Fortnightly | W3: Monthly | X3: Annually | Y3: Monthly | Z3: Weekly | AA3: Fortnightly | AB3: Monthly | AC3: Annually | AD3: Monthly | AE3: Weekly | AF3: Fortnightly | AG3: Monthly | AH3: Annually | AI3: Monthly | AJ3: Weekly | AK3: Fortnightly | AL3: Monthly | AM3: Annually | AN3: Weekly | AO3: Fortnightly | AP3: Monthly | AQ3: Annually | AR3: Weekly | AS3: Fortnightly | AT3: Monthly | AU3: Annually | AV3: Weekly | AW3: Fortnightly | AX3: Monthly | AY3: Annually | AZ3: Weekly | BA3: Fortnightly | BB3: Monthly | BC3: Annually | BD3: Weekly | BE3: Fortnightly | BF3: Monthly | BG3: Annually
B4: Secondary Employment | D4: =IF(C3=2,'Loan Affordability Calculator'!B20,0) -> 0 | E4: Self Employed | G4: =IF(F3=2,'Loan Affordability Calculator'!B21,0) -> 0 | H4: Self Employed | J4: =IF(I3=2,'Loan Affordability Calculator'!B22,0) -> 0 | L4: Gross | M4: 1 | N4: Gross | O4: 1 | P4: Gross | Q4: 1 | R4: Week | S4: 3 | T4: Income 1 | U4: =IF(S4=1,((D3*13)/3),0) -> 0 | V4: =IF(S4=2,(((D3/2)*13)/3),0) -> 0 | W4: =IF(S4=3,D3,0) -> 0 | X4: =IF(S4=4,(((D3/52)*13)/3),0) -> 0 | Y4: ='Tax Rates'!F26 -> 0 | Z4: =IF(S4=1,((D4*13)/3),0) -> 0 | AA4: =IF(S4=2,(((D4/2)*13)/3),0) -> 0 | AB4: =IF(S4=3,D4,0) -> 0 | AC4: =IF(S4=4,(((D4/52)*13)/3),0) -> 0 | AD4: ='Tax Rates'!L26 -> 0 | AE4: =IF(S4=1,((D5*13)/3),0) -> 0 | AF4: =IF(S4=2,(((D5/2)*13)/3),0) -> 0 | AG4: =IF(S4=3,D5,0) -> 0 | AH4: =IF(S4=4,(((D5/52)*13)/3),0) -> 0 | AI4: ='Tax Rates'!R26 -> 0 | AJ4: =IF(S4=1,((D6*13)/3)*0.8,0) -> 0 | AK4: =IF(S4=2,(((D6/2)*13)/3)*0.8,0) -> 0 | AL4: =IF(S4=3,D6*0.8,0) -> 0 | AM4: =IF(S4=4,(((D6/52)*13)/3)*0.8,0) -> 0 | AN4: =IF(S4=1,((D7*13)/3)*0.7,0) -> 0 | AO4: =IF(S4=2,(((D7/2)*13)/3)*0.7,0) -> 0 | AP4: =IF(S4=3,D7*0.7,0) -> 0 | AQ4: =IF(S4=4,(((D7/52)*13)/3)*0.7,0) -> 0 | AR4: =IF(S4=1,((D8*13)/3)*0.5,0) -> 0 | AS4: =IF(S4=2,(((D8/2)*13)/3)*0.5,0) -> 0 | AT4: =IF(S4=3,D8*0.5,0) -> 0 | AU4: =IF(S4=4,(((D8/52)*13)/3)*0.5,0) -> 0 | AV4: =IF(S4=1,((D9*13)/3),0) -> 0 | AW4: =IF(S4=2,(((D9/2)*13)/3),0) -> 0 | AX4: =IF(S4=3,D9,0) -> 0 | AY4: =IF(S4=4,(((D9/52)*13)/3),0) -> 0 | AZ4: =IF(S4=1,((D10*13)/3),0) -> 0 | BA4: =IF(S4=2,(((D10/2)*13)/3),0) -> 0 | BB4: =IF(S4=3,D10,0) -> 0 | BC4: =IF(S4=4,(((D10/52)*13)/3),0) -> 0 | BD4: =IF(S4=1,((D11*13)/3),0)*0.8 -> 0 | BE4: =IF(S4=2,(((D11/2)*13)/3),0)*0.8 -> 0 | BF4: =IF(S4=3,D11,0)*0.8 -> 0 | BG4: =IF(S4=4,(((D11/52)*13)/3),0)*0.8 -> 0 | BI4: =SUM(AJ4:BG4) -> 0
B5: Self Employed | D5: =IF(C3=3,'Loan Affordability Calculator'!B20,0) -> 0 | E5: Rent (Metro & Regional) | G5: =IF(F3=3,'Loan Affordability Calculator'!B21,0) -> 0 | H5: Rent (Metro & Regional) | J5: =IF(I3=3,'Loan Affordability Calculator'!B22,0) -> 0 | L5: Net | N5: Net | P5: Net | R5: Fortnight | S5: 3 | T5: Income 2 | Z5: =IF(S5=1,((G3*13)/3),0) -> 0 | AA5: =IF(S5=2,(((G3/2)*13)/3),0) -> 0 | AB5: =IF(S5=3,G3,0) -> 0 | AC5: =IF(S5=4,(((G3/52)*13)/3),0) -> 0 | AD5: ='Tax Rates'!Z26 -> 0 | AE5: =IF(S5=1,((G4*13)/3),0) -> 0 | AF5: =IF(S5=2,(((G4/2)*13)/3),0) -> 0 | AG5: =IF(S5=3,G4,0) -> 0 | AH5: =IF(S5=4,(((G4/52)*13)/3),0) -> 0 | AI5: ='Tax Rates'!AD26 -> 0 | AJ5: =IF(S5=1,((G5*13)/3)*0.8,0) -> 0 | AK5: =IF(S5=2,(((G5/2)*13)/3)*0.8,0) -> 0 | AL5: =IF(S5=3,G5*0.8,0) -> 0 | AM5: =IF(S5=4,(((G5/52)*13)/3)*0.8,0) -> 0 | AN5: =IF(S5=1,((G6*13)/3)*0.7,0) -> 0 | AO5: =IF(S5=2,(((G6/2)*13)/3)*0.7,0) -> 0 | AP5: =IF(S5=3,G6*0.7,0) -> 0 | AQ5: =IF(S5=4,(((G6/52)*13)/3)*0.7,0) -> 0 | AR5: =IF(S5=1,((G7*13)/3)*0.5,0) -> 0 | AS5: =IF(S5=2,(((G7/2)*13)/3)*0.5,0) -> 0 | AT5: =IF(S5=3,G7*0.5,0) -> 0 | AU5: =IF(S5=4,(((G7/52)*13)/3)*0.5,0) -> 0 | AV5: =IF(S5=1,((G8*13)/3),0) -> 0 | AW5: =IF(S5=2,(((G8/2)*13)/3),0) -> 0 | AX5: =IF(S5=3,G8,0) -> 0 | AY5: =IF(S5=4,(((G8/52)*13)/3),0) -> 0 | AZ5: =IF(S5=1,((G9*13)/3),0) -> 0 | BA5: =IF(S5=2,(((G9/2)*13)/3),0) -> 0 | BB5: =IF(S5=3,G9,0) -> 0 | BC5: =IF(S5=4,(((G9/52)*13)/3),0) -> 0 | BD5: =IF(S5=1,((G10*13)/3),0)*0.8 -> 0 | BE5: =IF(S5=2,(((G10/2)*13)/3),0)*0.8 -> 0 | BF5: =IF(S5=3,G10,0)*0.8 -> 0 | BG5: =IF(S5=4,(((G10/52)*13)/3),0)*0.8 -> 0 | BI5: =SUM(AJ5:BG5) -> 0
B6: Rent (Metro & Regional) | D6: =IF(C3=4,'Loan Affordability Calculator'!B20,0) -> 0 | E6: Rent (National & Commercial) | G6: =IF(F3=4,'Loan Affordability Calculator'!B21,0) -> 0 | H6: Rent (National & Commercial) | J6: =IF(I3=4,'Loan Affordability Calculator'!B22,0) -> 0 | R6: Month | S6: 3 | T6: Income 3 | Z6: =IF(S6=1,((J3*13)/3),0) -> 0 | AA6: =IF(S6=2,(((J3/2)*13)/3),0) -> 0 | AB6: =IF(S6=3,J3,0) -> 0 | AC6: =IF(S6=4,(((J3/52)*13)/3),0) -> 0 | AD6: ='Tax Rates'!AI26 -> 0 | AE6: =IF(S6=1,((J4*13)/3),0) -> 0 | AF6: =IF(S6=2,(((J4/2)*13)/3),0) -> 0 | AG6: =IF(S6=3,J4,0) -> 0 | AH6: =IF(S6=4,(((J4/52)*13)/3),0) -> 0 | AI6: ='Tax Rates'!AM26 -> 0 | AJ6: =IF(S6=1,((J5*13)/3)*0.8,0) -> 0 | AK6: =IF(S6=2,(((J5/2)*13)/3)*0.8,0) -> 0 | AL6: =IF(S6=3,J5*0.8,0) -> 0 | AM6: =IF(S6=4,(((J5/52)*13)/3)*0.8,0) -> 0 | AN6: =IF(S6=1,((J6*13)/3)*0.7,0) -> 0 | AO6: =IF(S6=2,(((J6/2)*13)/3)*0.7,0) -> 0 | AP6: =IF(S6=3,J6*0.7,0) -> 0 | AQ6: =IF(S6=4,(((J6/52)*13)/3)*0.7,0) -> 0 | AR6: =IF(S6=1,((J7*13)/3)*0.5,0) -> 0 | AS6: =IF(S6=2,(((J7/2)*13)/3)*0.5,0) -> 0 | AT6: =IF(S6=3,J7*0.5,0) -> 0 | AU6: =IF(S6=4,(((J7/52)*13)/3)*0.5,0) -> 0 | AV6: =IF(S6=1,((J8*13)/3),0) -> 0 | AW6: =IF(S6=2,(((J8/2)*13)/3),0) -> 0 | AX6: =IF(S6=3,J8,0) -> 0 | AY6: =IF(S6=4,(((J8/52)*13)/3),0) -> 0 | AZ6: =IF(S6=1,((J9*13)/3),0) -> 0 | BA6: =IF(S6=2,(((J9/2)*13)/3),0) -> 0 | BB6: =IF(S6=3,J9,0) -> 0 | BC6: =IF(S6=4,(((J9/52)*13)/3),0) -> 0 | BD6: =IF(S6=1,((J10*13)/3),0)*0.8 -> 0 | BE6: =IF(S6=2,(((J10/2)*13)/3),0)*0.8 -> 0 | BF6: =IF(S6=3,J10,0)*0.8 -> 0 | BG6: =IF(S6=4,(((J10/52)*13)/3),0)*0.8 -> 0 | BI6: =SUM(AJ6:BG6) -> 0
B7: Rent (National & Commercial) | D7: =IF(C3=5,'Loan Affordability Calculator'!B20,0) -> 0 | E7: Rent (High Density Serviced Apartment) | G7: =IF(F3=5,'Loan Affordability Calculator'!B21,0) -> 0 | H7: Rent (High Density Serviced Apartment) | J7: =IF(I3=5,'Loan Affordability Calculator'!B22,0) -> 0 | R7: Annually
B8: Rent (High Density Serviced Apartment) | D8: =IF(C3=6,'Loan Affordability Calculator'!B20,0) -> 0 | E8: Superannuation | G8: =IF(F3=6,'Loan Affordability Calculator'!B21,0) -> 0 | H8: Superannuation | J8: =IF(I3=6,'Loan Affordability Calculator'!B22,0) -> 0 | L8: Borrower 2 Net or Gross | R8: Response | U8: Weekly | V8: Fortnightly | W8: Monthly | X8: Annually | Y8: Monthly | Z8: Weekly | AA8: Fortnightly | AB8: Monthly | AC8: Annually | AD8: Monthly | AE8: Weekly | AF8: Fortnightly | AG8: Monthly | AH8: Annually | AI8: Monthly | AJ8: Weekly | AK8: Fortnightly | AL8: Monthly | AM8: Annually | AN8: Weekly | AO8: Fortnightly | AP8: Monthly | AQ8: Annually | AR8: Weekly | AS8: Fortnightly | AT8: Monthly | AU8: Annually | AV8: Weekly | AW8: Fortnightly | AX8: Monthly | AY8: Annually | AZ8: Weekly | BA8: Fortnightly | BB8: Monthly | BC8: Annually | BD8: Weekly | BE8: Fortnightly | BF8: Monthly | BG8: Annually
B9: Superannuation | D9: =IF(C3=7,'Loan Affordability Calculator'!B20,0) -> 0 | E9: Government Benefits | G9: =IF(F3=7,'Loan Affordability Calculator'!B21,0) -> 0 | H9: Government Benefits | J9: =IF(I3=7,'Loan Affordability Calculator'!B22,0) -> 0 | L9: Income 1 | N9: Income 2 | P9: Income 3 | R9: Week | S9: 3 | T9: Income 1 | U9: =IF(S9=1,((D19*13)/3),0) -> 0 | V9: =IF(S9=2,(((D19/2)*13)/3),0) -> 0 | W9: =IF(S9=3,D19,0) -> 0 | X9: =IF(S9=4,(((D19/52)*13)/3),0) -> 0 | Y9: ='Tax Rates'!F82 -> 0 | Z9: =IF(S9=1,((D20*13)/3),0) -> 0 | AA9: =IF(S9=2,(((D20/2)*13)/3),0) -> 0 | AB9: =IF(S9=3,D20,0) -> 0 | AC9: =IF(S9=4,(((D20/52)*13)/3),0) -> 0 | AD9: ='Tax Rates'!L82 -> 0 | AE9: =IF(S9=1,((D21*13)/3),0) -> 0 | AF9: =IF(S9=2,(((D21/2)*13)/3),0) -> 0 | AG9: =IF(S9=3,D21,0) -> 0 | AH9: =IF(S9=4,(((D21/52)*13)/3),0) -> 0 | AI9: ='Tax Rates'!R82 -> 0 | AJ9: =IF(S9=1,((D22*13)/3)*0.8,0) -> 0 | AK9: =IF(S9=2,(((D22/2)*13)/3)*0.8,0) -> 0 | AL9: =IF(S9=3,D22*0.8,0) -> 0 | AM9: =IF(S9=4,(((D22/52)*13)/3)*0.8,0) -> 0 | AN9: =IF(S9=1,((D23*13)/3)*0.7,0) -> 0 | AO9: =IF(S9=2,(((D23/2)*13)/3)*0.7,0) -> 0 | AP9: =IF(S9=3,D23*0.7,0) -> 0 | AQ9: =IF(S9=4,(((D23/52)*13)/3)*0.7,0) -> 0 | AR9: =IF(S9=1,((D24*13)/3)*0.5,0) -> 0 | AS9: =IF(S9=2,(((D24/2)*13)/3)*0.5,0) -> 0 | AT9: =IF(S9=3,D24*0.5,0) -> 0 | AU9: =IF(S9=4,(((D24/52)*13)/3)*0.5,0) -> 0 | AV9: =IF(S9=1,((D25*13)/3),0) -> 0 | AW9: =IF(S9=2,(((D25/2)*13)/3),0) -> 0 | AX9: =IF(S9=3,D25,0) -> 0 | AY9: =IF(S9=4,(((D25/52)*13)/3),0) -> 0 | AZ9: =IF(S9=1,((D26*13)/3),0) -> 0 | BA9: =IF(S9=2,(((D26/2)*13)/3),0) -> 0 | BB9: =IF(S9=3,D26,0) -> 0 | BC9: =IF(S9=4,(((D26/52)*13)/3),0) -> 0 | BD9: =IF(S9=1,((D27*13)/3),0)*0.8 -> 0 | BE9: =IF(S9=2,(((D27/2)*13)/3),0)*0.8 -> 0 | BF9: =IF(S9=3,D27,0)*0.8 -> 0 | BG9: =IF(S9=4,(((D27/52)*13)/3),0)*0.8 -> 0 | BI9: =SUM(AJ9:BG9) -> 0
B10: Government Benefits | D10: =IF(C3=8,'Loan Affordability Calculator'!B20,0) -> 0 | E10: Child Support | G10: =IF(F3=8,'Loan Affordability Calculator'!B21,0) -> 0 | H10: Child Support | J10: =IF(I3=8,'Loan Affordability Calculator'!B22,0) -> 0 | L10: Gross | M10: 1 | N10: Gross | O10: 1 | P10: Gross | Q10: 1 | R10: Fortnight | S10: 3 | T10: Income 2 | Z10: =IF(S10=1,((G19*13)/3),0) -> 0 | AA10: =IF(S10=2,(((G19/2)*13)/3),0) -> 0 | AB10: =IF(S10=3,G19,0) -> 0 | AC10: =IF(S10=4,(((G19/52)*13)/3),0) -> 0 | AD10: ='Tax Rates'!Z82 -> 0 | AE10: =IF(S10=1,((G20*13)/3),0) -> 0 | AF10: =IF(S10=2,G20*26/12,0) -> 0 | AG10: =IF(S10=3,G20,0) -> 0 | AH10: =IF(S10=4,(((G20/52)*13)/3),0) -> 0 | AI10: ='Tax Rates'!AD82 -> 0 | AJ10: =IF(S10=1,((G21*13)/3)*0.8,0) -> 0 | AK10: =IF(S10=2,(((G21/2)*13)/3)*0.8,0) -> 0 | AL10: =IF(S10=3,G21*0.8,0) -> 0 | AM10: =IF(S10=4,(((G21/52)*13)/3)*0.8,0) -> 0 | AN10: =IF(S10=1,((G22*13)/3)*0.7,0) -> 0 | AO10: =IF(S10=2,(((G22/2)*13)/3)*0.7,0) -> 0 | AP10: =IF(S10=3,G22*0.7,0) -> 0 | AQ10: =IF(S10=4,(((G22/52)*13)/3)*0.7,0) -> 0 | AR10: =IF(S10=1,((G23*13)/3)*0.5,0) -> 0 | AS10: =IF(S10=2,(((G23/2)*13)/3)*0.5,0) -> 0 | AT10: =IF(S10=3,G23*0.5,0) -> 0 | AU10: =IF(S10=4,(((G23/52)*13)/3)*0.5,0) -> 0 | AV10: =IF(S10=1,((G24*13)/3),0) -> 0 | AW10: =IF(S10=2,(((G24/2)*13)/3),0) -> 0 | AX10: =IF(S10=3,G24,0) -> 0 | AY10: =IF(S10=4,(((G24/52)*13)/3),0) -> 0 | AZ10: =IF(S10=1,((G25*13)/3),0) -> 0 | BA10: =IF(S10=2,(((G25/2)*13)/3),0) -> 0 | BB10: =IF(S10=3,G25,0) -> 0 | BC10: =IF(S10=4,(((G25/52)*13)/3),0) -> 0 | BD10: =IF(S10=1,((G26*13)/3),0)*0.8 -> 0 | BE10: =IF(S10=2,(((G26/2)*13)/3),0)*0.8 -> 0 | BF10: =IF(S10=3,G26,0)*0.8 -> 0 | BG10: =IF(S10=4,(((G26/52)*13)/3),0)*0.8 -> 0 | BI10: =SUM(AJ10:BG10) -> 0
B11: Child Support | D11: =IF(C3=9,'Loan Affordability Calculator'!B20,0) -> 0 | E11: N/A | G11: 0 | H11: N/A | J11: 0 | K11: 2 | L11: Net | N11: Net | P11: Net | R11: Month | S11: 3 | T11: Income 3 | Z11: =IF(S11=1,((J19*13)/3),0) -> 0 | AA11: =IF(S11=2,(((J19/2)*13)/3),0) -> 0 | AB11: =IF(S11=3,J19,0) -> 0 | AC11: =IF(S11=4,(((J19/52)*13)/3),0) -> 0 | AD11: ='Tax Rates'!AI82 -> 0 | AE11: =IF(S11=1,((J20*13)/3),0) -> 0 | AF11: =IF(S11=2,(((J20/2)*13)/3),0) -> 0 | AG11: =IF(S11=3,J20,0) -> 0 | AH11: =IF(S11=4,(((J20/52)*13)/3),0) -> 0 | AI11: ='Tax Rates'!AM82 -> 0 | AJ11: =IF(S11=1,((J21*13)/3)*0.8,0) -> 0 | AK11: =IF(S11=2,(((J21/2)*13)/3)*0.8,0) -> 0 | AL11: =IF(S11=3,J21*0.8,0) -> 0 | AM11: =IF(S11=4,(((J21/52)*13)/3)*0.8,0) -> 0 | AN11: =IF(S11=1,((J22*13)/3)*0.7,0) -> 0 | AO11: =IF(S11=2,(((J22/2)*13)/3)*0.7,0) -> 0 | AP11: =IF(S11=3,J22*0.7,0) -> 0 | AQ11: =IF(S11=4,(((J22/52)*13)/3)*0.7,0) -> 0 | AR11: =IF(S11=1,((J23*13)/3)*0.5,0) -> 0 | AS11: =IF(S11=2,(((J23/2)*13)/3)*0.5,0) -> 0 | AT11: =IF(S11=3,J23*0.5,0) -> 0 | AU11: =IF(S11=4,(((J23/52)*13)/3)*0.5,0) -> 0 | AV11: =IF(S11=1,((J24*13)/3),0) -> 0 | AW11: =IF(S11=2,(((J24/2)*13)/3),0) -> 0 | AX11: =IF(S11=3,J24,0) -> 0 | AY11: =IF(S11=4,(((J24/52)*13)/3),0) -> 0 | AZ11: =IF(S11=1,((J25*13)/3),0) -> 0 | BA11: =IF(S11=2,(((J25/2)*13)/3),0) -> 0 | BB11: =IF(S11=3,J25,0) -> 0 | BC11: =IF(S11=4,(((J25/52)*13)/3),0) -> 0 | BD11: =IF(S11=1,((J26*13)/3),0)*0.8 -> 0 | BE11: =IF(S11=2,(((J26/2)*13)/3),0)*0.8 -> 0 | BF11: =IF(S11=3,J26,0)*0.8 -> 0 | BG11: =IF(S11=4,(((J26/52)*13)/3),0)*0.8 -> 0 | BI11: =SUM(AJ11:BG11) -> 0
R12: Annually
L13: Borrower 3 Net or Gross | R13: Response | U13: Weekly | V13: Fortnightly | W13: Monthly | X13: Annually | Y13: Monthly | Z13: Weekly | AA13: Fortnightly | AB13: Monthly | AC13: Annually | AD13: Monthly | AE13: Weekly | AF13: Fortnightly | AG13: Monthly | AH13: Annually | AI13: Monthly | AJ13: Weekly | AK13: Fortnightly | AL13: Monthly | AM13: Annually | AN13: Weekly | AO13: Fortnightly | AP13: Monthly | AQ13: Annually | AR13: Weekly | AS13: Fortnightly | AT13: Monthly | AU13: Annually | AV13: Weekly | AW13: Fortnightly | AX13: Monthly | AY13: Annually | AZ13: Weekly | BA13: Fortnightly | BB13: Monthly | BC13: Annually | BD13: Weekly | BE13: Fortnightly | BF13: Monthly | BG13: Annually
A14: Primary | B14: =IF(M4=1,Y4,U4+V4+W4+X4) -> 0 | L14: Income 1 | N14: Income 2 | P14: Income 3 | R14: Week | S14: 3 | T14: Income 1 | U14: =IF(S14=1,((D36*13)/3),0) -> 0 | V14: =IF(S14=2,(((D36/2)*13)/3),0) -> 0 | W14: =IF(S14=3,D36,0) -> 0 | X14: =IF(S14=4,(((D36/52)*13)/3),0) -> 0 | Y14: ='Tax Rates'!F133 -> 0 | Z14: =IF(S14=1,((D37*13)/3),0) -> 0 | AA14: =IF(S14=2,(((D37/2)*13)/3),0) -> 0 | AB14: =IF(S14=3,D37,0) -> 0 | AC14: =IF(S14=4,(((D37/52)*13)/3),0) -> 0 | AD14: ='Tax Rates'!L133 -> 0 | AE14: =IF(S14=1,((D38*13)/3),0) -> 0 | AF14: =IF(S14=2,(((D38/2)*13)/3),0) -> 0 | AG14: =IF(S14=3,D38,0) -> 0 | AH14: =IF(S14=4,(((D38/52)*13)/3),0) -> 0 | AI14: ='Tax Rates'!R133 -> 0 | AJ14: =IF(S14=1,((D39*13)/3)*0.8,0) -> 0 | AK14: =IF(S14=2,(((D39/2)*13)/3)*0.8,0) -> 0 | AL14: =IF(S14=3,D39*0.8,0) -> 0 | AM14: =IF(S14=4,(((D39/52)*13)/3)*0.8,0) -> 0 | AN14: =IF(S14=1,((D40*13)/3)*0.7,0) -> 0 | AO14: =IF(S14=2,(((D40/2)*13)/3)*0.7,0) -> 0 | AP14: =IF(S14=3,D40*0.7,0) -> 0 | AQ14: =IF(S14=4,(((D40/52)*13)/3)*0.7,0) -> 0 | AR14: =IF(S14=1,((D41*13)/3)*0.5,0) -> 0 | AS14: =IF(S14=2,(((D41/2)*13)/3)*0.5,0) -> 0 | AT14: =IF(S14=3,D41*0.5,0) -> 0 | AU14: =IF(S14=4,(((D41/52)*13)/3)*0.5,0) -> 0 | AV14: =IF(S14=1,((D42*13)/3),0) -> 0 | AW14: =IF(S14=2,(((D42/2)*13)/3),0) -> 0 | AX14: =IF(S14=3,D42,0) -> 0 | AY14: =IF(S14=4,(((D42/52)*13)/3),0) -> 0 | AZ14: =IF(S14=1,((D43*13)/3),0) -> 0 | BA14: =IF(S14=2,(((D43/2)*13)/3),0) -> 0 | BB14: =IF(S14=3,D43,0) -> 0 | BC14: =IF(S14=4,(((D43/52)*13)/3),0) -> 0 | BD14: =IF(S14=1,((D44*13)/3),0)*0.8 -> 0 | BE14: =IF(S14=2,(((D44/2)*13)/3),0)*0.8 -> 0 | BF14: =IF(S14=3,D44,0)*0.8 -> 0 | BG14: =IF(S14=4,(((D44/52)*13)/3),0)*0.8 -> 0 | BI14: =SUM(AJ14:BG14) -> 0
A15: Secondary | B15: =IF(M4=1,AD4,Z4+AA4+AB4+AC4) -> 0 | D15: Secondary | E15: =IF(O4=1,AD5,Z5+AA5+AB5+AC5) -> 0 | G15: Secondary | H15: =IF(Q4=1,AD6,Z6+AA6+AB6+AC6) -> 0 | L15: Gross | M15: 1 | N15: Gross | O15: 1 | P15: Gross | Q15: 1 | R15: Fortnight | S15: 3 | T15: Income 2 | Z15: =IF(S15=1,((G36*13)/3),0) -> 0 | AA15: =IF(S15=2,(((G36/2)*13)/3),0) -> 0 | AB15: =IF(S15=3,G36,0) -> 0 | AC15: =IF(S15=4,(((G36/52)*13)/3),0) -> 0 | AD15: ='Tax Rates'!Z133 -> 0 | AE15: =IF(S15=1,((G37*13)/3),0) -> 0 | AF15: =IF(S15=2,(((G37/2)*13)/3),0) -> 0 | AG15: =IF(S15=3,G37,0) -> 0 | AH15: =IF(S15=4,(((G37/52)*13)/3),0) -> 0 | AI15: ='Tax Rates'!AD133 -> 0 | AJ15: =IF(S15=1,((G38*13)/3)*0.8,0) -> 0 | AK15: =IF(S15=2,(((G38/2)*13)/3)*0.8,0) -> 0 | AL15: =IF(S15=3,G38*0.8,0) -> 0 | AM15: =IF(S15=4,(((G38/52)*13)/3)*0.8,0) -> 0 | AN15: =IF(S15=1,((G39*13)/3)*0.7,0) -> 0 | AO15: =IF(S15=2,(((G39/2)*13)/3)*0.7,0) -> 0 | AP15: =IF(S15=3,G39*0.7,0) -> 0 | AQ15: =IF(S15=4,(((G39/52)*13)/3)*0.7,0) -> 0 | AR15: =IF(S15=1,((G40*13)/3)*0.5,0) -> 0 | AS15: =IF(S15=2,(((G40/2)*13)/3)*0.5,0) -> 0 | AT15: =IF(S15=3,G40*0.5,0) -> 0 | AU15: =IF(S15=4,(((G40/52)*13)/3)*0.5,0) -> 0 | AV15: =IF(S15=1,((G41*13)/3),0) -> 0 | AW15: =IF(S15=2,(((G41/2)*13)/3),0) -> 0 | AX15: =IF(S15=3,G41,0) -> 0 | AY15: =IF(S15=4,(((G41/52)*13)/3),0) -> 0 | AZ15: =IF(S15=1,((G42*13)/3),0) -> 0 | BA15: =IF(S15=2,(((G42/2)*13)/3),0) -> 0 | BB15: =IF(S15=3,G42,0) -> 0 | BC15: =IF(S15=4,(((G42/52)*13)/3),0) -> 0 | BD15: =IF(S15=1,((G43*13)/3),0)*0.8 -> 0 | BE15: =IF(S15=2,(((G43/2)*13)/3),0)*0.8 -> 0 | BF15: =IF(S15=3,G43,0)*0.8 -> 0 | BG15: =IF(S15=4,(((G43/52)*13)/3),0)*0.8 -> 0 | BI15: =SUM(AJ15:BG15) -> 0
A16: Self Employed | B16: =IF(M4=1,AI4,AE4+AF4+AG4+AH4) -> 0 | D16: Self Employed | E16: =IF(O4=1,AI5,AE5+AF5+AG5+AH5) -> 0 | G16: Self Employed | H16: =IF(Q4=1,AI6,AE6+AF6+AG6+AH6) -> 0 | L16: Net | N16: Net | P16: Net | R16: Month | S16: 3 | T16: Income 3 | Z16: =IF(S16=1,((J36*13)/3),0) -> 0 | AA16: =IF(S16=2,(((J36/2)*13)/3),0) -> 0 | AB16: =IF(S16=3,J36,0) -> 0 | AC16: =IF(S16=4,(((J36/52)*13)/3),0) -> 0 | AD16: ='Tax Rates'!AI133 -> 0 | AE16: =IF(S16=1,((J37*13)/3),0) -> 0 | AF16: =IF(S16=2,(((J37/2)*13)/3),0) -> 0 | AG16: =IF(S16=3,J37,0) -> 0 | AH16: =IF(S16=4,(((J37/52)*13)/3),0) -> 0 | AI16: ='Tax Rates'!AM133 -> 0 | AJ16: =IF(S16=1,((J38*13)/3)*0.8,0) -> 0 | AK16: =IF(S16=2,(((J38/2)*13)/3)*0.8,0) -> 0 | AL16: =IF(S16=3,J38*0.8,0) -> 0 | AM16: =IF(S16=4,(((J38/52)*13)/3)*0.8,0) -> 0 | AN16: =IF(S16=1,((J39*13)/3)*0.7,0) -> 0 | AO16: =IF(S16=2,(((J39/2)*13)/3)*0.7,0) -> 0 | AP16: =IF(S16=3,J39*0.7,0) -> 0 | AQ16: =IF(S16=4,(((J39/52)*13)/3)*0.7,0) -> 0 | AR16: =IF(S16=1,((J40*13)/3)*0.5,0) -> 0 | AS16: =IF(S16=2,(((J40/2)*13)/3)*0.5,0) -> 0 | AT16: =IF(S16=3,J40*0.5,0) -> 0 | AU16: =IF(S16=4,(((J40/52)*13)/3)*0.5,0) -> 0 | AV16: =IF(S16=1,((J41*13)/3),0) -> 0 | AW16: =IF(S16=2,(((J41/2)*13)/3),0) -> 0 | AX16: =IF(S16=3,J41,0) -> 0 | AY16: =IF(S16=4,(((J41/52)*13)/3),0) -> 0 | AZ16: =IF(S16=1,((J42*13)/3),0) -> 0 | BA16: =IF(S16=2,(((J42/2)*13)/3),0) -> 0 | BB16: =IF(S16=3,J42,0) -> 0 | BC16: =IF(S16=4,(((J42/52)*13)/3),0) -> 0 | BD16: =IF(S16=1,((J43*13)/3),0)*0.8 -> 0 | BE16: =IF(S16=2,(((J43/2)*13)/3),0)*0.8 -> 0 | BF16: =IF(S16=3,J43,0)*0.8 -> 0 | BG16: =IF(S16=4,(((J43/52)*13)/3),0)*0.8 -> 0 | BI16: =SUM(AJ16:BG16) -> 0
B17: Borrower 2 Income Type | R17: Annually
B18: Income Type 1 | E18: Income Type 2 | H18: Income Type 3
B19: Primary Employment | C19: 1 | D19: =IF(C19=1,'Loan Affordability Calculator'!B47,0) -> 0 | E19: Secondary Employment | F19: 9 | G19: =IF(F19=1,'Loan Affordability Calculator'!B48,0) -> 0 | H19: Secondary Employment | I19: 9 | J19: =IF(I19=1,'Loan Affordability Calculator'!B49,0) -> 0
B20: Secondary Employment | D20: =IF(C19=2,'Loan Affordability Calculator'!B47,0) -> 0 | E20: Self Employed | G20: =IF(F19=2,'Loan Affordability Calculator'!B48,0) -> 0 | H20: Self Employed | J20: =IF(I19=2,'Loan Affordability Calculator'!B49,0) -> 0 | L20: Borrower 4 Net or Gross | R20: Response | U20: Weekly | V20: Fortnightly | W20: Monthly | X20: Annually | Y20: Monthly | Z20: Weekly | AA20: Fortnightly | AB20: Monthly | AC20: Annually | AD20: Monthly | AE20: Weekly | AF20: Fortnightly | AG20: Monthly | AH20: Annually | AI20: Monthly | AJ20: Weekly | AK20: Fortnightly | AL20: Monthly | AM20: Annually | AN20: Weekly | AO20: Fortnightly | AP20: Monthly | AQ20: Annually | AR20: Weekly | AS20: Fortnightly | AT20: Monthly | AU20: Annually | AV20: Weekly | AW20: Fortnightly | AX20: Monthly | AY20: Annually | AZ20: Weekly | BA20: Fortnightly | BB20: Monthly | BC20: Annually | BD20: Weekly | BE20: Fortnightly | BF20: Monthly | BG20: Annually
B21: Self Employed | D21: =IF(C19=3,'Loan Affordability Calculator'!B47,0) -> 0 | E21: Rent (Metro & Regional) | G21: =IF(F19=3,'Loan Affordability Calculator'!B48,0) -> 0 | H21: Rent (Metro & Regional) | J21: =IF(I19=3,'Loan Affordability Calculator'!B49,0) -> 0 | L21: Income 1 | N21: Income 2 | P21: Income 3 | R21: Week | S21: 3 | T21: Income 1 | U21: =IF(S21=1,((D53*13)/3),0) -> 0 | V21: =IF(S21=2,(((D53/2)*13)/3),0) -> 0 | W21: =IF(S21=3,D53,0) -> 0 | X21: =IF(S21=4,(((D53/52)*13)/3),0) -> 0 | Y21: ='Tax Rates'!F183 -> 0 | Z21: =IF(S21=1,((D54*13)/3),0) -> 0 | AA21: =IF(S21=2,(((D54/2)*13)/3),0) -> 0 | AB21: =IF(S21=3,D54,0) -> 0 | AC21: =IF(S21=4,(((D54/52)*13)/3),0) -> 0 | AD21: ='Tax Rates'!L183 -> 0 | AE21: =IF(S21=1,((D55*13)/3),0) -> 0 | AF21: =IF(S21=2,(((D55/2)*13)/3),0) -> 0 | AG21: =IF(S21=3,D55,0) -> 0 | AH21: =IF(S21=4,(((D55/52)*13)/3),0) -> 0 | AI21: ='Tax Rates'!R183 -> 0 | AJ21: =IF(S21=1,((D56*13)/3)*0.8,0) -> 0 | AK21: =IF(S21=2,(((D56/2)*13)/3)*0.8,0) -> 0 | AL21: =IF(S21=3,D56*0.8,0) -> 0 | AM21: =IF(S21=4,(((D56/52)*13)/3)*0.8,0) -> 0 | AN21: =IF(S21=1,((D57*13)/3)*0.7,0) -> 0 | AO21: =IF(S21=2,(((D57/2)*13)/3)*0.7,0) -> 0 | AP21: =IF(S21=3,D57*0.7,0) -> 0 | AQ21: =IF(S21=4,(((D57/52)*13)/3)*0.7,0) -> 0 | AR21: =IF(S21=1,((D58*13)/3)*0.5,0) -> 0 | AS21: =IF(S21=2,(((D58/2)*13)/3)*0.5,0) -> 0 | AT21: =IF(S21=3,D58*0.5,0) -> 0 | AU21: =IF(S21=4,(((D58/52)*13)/3)*0.5,0) -> 0 | AV21: =IF(S21=1,((D59*13)/3),0) -> 0 | AW21: =IF(S21=2,(((D59/2)*13)/3),0) -> 0 | AX21: =IF(S21=3,D59,0) -> 0 | AY21: =IF(S21=4,(((D59/52)*13)/3),0) -> 0 | AZ21: =IF(S21=1,((D60*13)/3),0) -> 0 | BA21: =IF(S21=2,(((D60/2)*13)/3),0) -> 0 | BB21: =IF(S21=3,D60,0) -> 0 | BC21: =IF(S21=4,(((D60/52)*13)/3),0) -> 0 | BD21: =IF(S21=1,((D61*13)/3),0)*0.8 -> 0 | BE21: =IF(S21=2,(((D61/2)*13)/3),0)*0.8 -> 0 | BF21: =IF(S21=3,D61,0)*0.8 -> 0 | BG21: =IF(S21=4,(((D61/52)*13)/3),0)*0.8 -> 0 | BI21: =SUM(AJ21:BG21) -> 0
B22: Rent (Metro & Regional) | D22: =IF(C19=4,'Loan Affordability Calculator'!B47,0) -> 0 | E22: Rent (National & Commercial) | G22: =IF(F19=4,'Loan Affordability Calculator'!B48,0) -> 0 | H22: Rent (National & Commercial) | J22: =IF(I19=4,'Loan Affordability Calculator'!B49,0) -> 0 | L22: Gross | M22: 1 | N22: Gross | O22: 1 | P22: Gross | Q22: 1 | R22: Fortnight | S22: 3 | T22: Income 2 | Z22: =IF(S22=1,((G53*13)/3),0) -> 0 | AA22: =IF(S22=2,(((G53/2)*13)/3),0) -> 0 | AB22: =IF(S22=3,G53,0) -> 0 | AC22: =IF(S22=4,(((G53/52)*13)/3),0) -> 0 | AD22: ='Tax Rates'!Z183 -> 0 | AE22: =IF(S22=1,((G54*13)/3),0) -> 0 | AF22: =IF(S22=2,(((G54/2)*13)/3),0) -> 0 | AG22: =IF(S22=3,G54,0) -> 0 | AH22: =IF(S22=4,(((G54/52)*13)/3),0) -> 0 | AI22: ='Tax Rates'!AD183 -> 0 | AJ22: =IF(S22=1,((G55*13)/3)*0.8,0) -> 0 | AK22: =IF(S22=2,(((G55/2)*13)/3)*0.8,0) -> 0 | AL22: =IF(S22=3,G55*0.8,0) -> 0 | AM22: =IF(S22=4,(((G55/52)*13)/3)*0.8,0) -> 0 | AN22: =IF(S22=1,((G56*13)/3)*0.7,0) -> 0 | AO22: =IF(S22=2,(((G56/2)*13)/3)*0.7,0) -> 0 | AP22: =IF(S22=3,G56*0.7,0) -> 0 | AQ22: =IF(S22=4,(((G56/52)*13)/3)*0.7,0) -> 0 | AR22: =IF(S22=1,((G57*13)/3)*0.5,0) -> 0 | AS22: =IF(S22=2,(((G57/2)*13)/3)*0.5,0) -> 0 | AT22: =IF(S22=3,G57*0.5,0) -> 0 | AU22: =IF(S22=4,(((G57/52)*13)/3)*0.5,0) -> 0 | AV22: =IF(S22=1,((G58*13)/3),0) -> 0 | AW22: =IF(S22=2,(((G58/2)*13)/3),0) -> 0 | AX22: =IF(S22=3,G58,0) -> 0 | AY22: =IF(S22=4,(((G58/52)*13)/3),0) -> 0 | AZ22: =IF(S22=1,((G59*13)/3),0) -> 0 | BA22: =IF(S22=2,(((G59/2)*13)/3),0) -> 0 | BB22: =IF(S22=3,G59,0) -> 0 | BC22: =IF(S22=4,(((G59/52)*13)/3),0) -> 0 | BD22: =IF(S22=1,((G60*13)/3),0)*0.8 -> 0 | BE22: =IF(S22=2,(((G60/2)*13)/3),0)*0.8 -> 0 | BF22: =IF(S22=3,G60,0)*0.8 -> 0 | BG22: =IF(S22=4,(((G60/52)*13)/3),0)*0.8 -> 0 | BI22: =SUM(AJ22:BG22) -> 0
B23: Rent (National & Commercial) | D23: =IF(C19=5,'Loan Affordability Calculator'!B47,0) -> 0 | E23: Rent (High Density Serviced Apartment) | G23: =IF(F19=5,'Loan Affordability Calculator'!B48,0) -> 0 | H23: Rent (High Density Serviced Apartment) | J23: =IF(I19=5,'Loan Affordability Calculator'!B49,0) -> 0 | L23: Net | N23: Net | P23: Net | R23: Month | S23: 3 | T23: Income 3 | Z23: =IF(S23=1,((J53*13)/3),0) -> 0 | AA23: =IF(S23=2,(((J53/2)*13)/3),0) -> 0 | AB23: =IF(S23=3,J53,0) -> 0 | AC23: =IF(S23=4,(((J53/52)*13)/3),0) -> 0 | AD23: ='Tax Rates'!AI183 -> 0 | AE23: =IF(S23=1,((J54*13)/3),0) -> 0 | AF23: =IF(S23=2,(((J54/2)*13)/3),0) -> 0 | AG23: =IF(S23=3,J54,0) -> 0 | AH23: =IF(S23=4,(((J54/52)*13)/3),0) -> 0 | AI23: ='Tax Rates'!AM183 -> 0 | AJ23: =IF(S23=1,((J55*13)/3)*0.8,0) -> 0 | AK23: =IF(S23=2,(((J55/2)*13)/3)*0.8,0) -> 0 | AL23: =IF(S23=3,J55*0.8,0) -> 0 | AM23: =IF(S23=4,(((J55/52)*13)/3)*0.8,0) -> 0 | AN23: =IF(S23=1,((J56*13)/3)*0.7,0) -> 0 | AO23: =IF(S23=2,(((J56/2)*13)/3)*0.7,0) -> 0 | AP23: =IF(S23=3,J56*0.7,0) -> 0 | AQ23: =IF(S23=4,(((J56/52)*13)/3)*0.7,0) -> 0 | AR23: =IF(S23=1,((J57*13)/3)*0.5,0) -> 0 | AS23: =IF(S23=2,(((J57/2)*13)/3)*0.5,0) -> 0 | AT23: =IF(S23=3,J57*0.5,0) -> 0 | AU23: =IF(S23=4,(((J57/52)*13)/3)*0.5,0) -> 0 | AV23: =IF(S23=1,((J58*13)/3),0) -> 0 | AW23: =IF(S23=2,(((J58/2)*13)/3),0) -> 0 | AX23: =IF(S23=3,J58,0) -> 0 | AY23: =IF(S23=4,(((J58/52)*13)/3),0) -> 0 | AZ23: =IF(S23=1,((J59*13)/3),0) -> 0 | BA23: =IF(S23=2,(((J59/2)*13)/3),0) -> 0 | BB23: =IF(S23=3,J59,0) -> 0 | BC23: =IF(S23=4,(((J59/52)*13)/3),0) -> 0 | BD23: =IF(S23=1,((J60*13)/3),0)*0.8 -> 0 | BE23: =IF(S23=2,(((J60/2)*13)/3),0)*0.8 -> 0 | BF23: =IF(S23=3,J60,0)*0.8 -> 0 | BG23: =IF(S23=4,(((J60/52)*13)/3),0)*0.8 -> 0 | BI23: =SUM(AJ23:BG23) -> 0
B24: Rent (High Density Serviced Apartment) | D24: =IF(C19=6,'Loan Affordability Calculator'!B47,0) -> 0 | E24: Superannuation | G24: =IF(F19=6,'Loan Affordability Calculator'!B48,0) -> 0 | H24: Superannuation | J24: =IF(I19=6,'Loan Affordability Calculator'!B49,0) -> 0 | R24: Annually
B25: Superannuation | D25: =IF(C19=7,'Loan Affordability Calculator'!B47,0) -> 0 | E25: Government Benefits | G25: =IF(F19=7,'Loan Affordability Calculator'!B48,0) -> 0 | H25: Government Benefits | J25: =IF(I19=7,'Loan Affordability Calculator'!B49,0) -> 0
B26: Government Benefits | D26: =IF(C19=8,'Loan Affordability Calculator'!B47,0) -> 0 | E26: Child Support | G26: =IF(F19=8,'Loan Affordability Calculator'!B48,0) -> 0 | H26: Child Support | J26: =IF(I19=8,'Loan Affordability Calculator'!B49,0) -> 0
B27: Child Support | D27: =IF(C19=9,'Loan Affordability Calculator'!B47,0) -> 0 | E27: N/A | H27: N/A
T28: Income Used in Calculation
T29: Borrower 1 | V29: Borrower 2 | X29: Borrower 3 | Z29: borrower 4
A30: Primary | B30: =IF(M10=1,Y9,U9+V9+W9+X9) -> 0 | D30: Primary | T30: Income 1 | U30: =B14+B15+B16+BI4 -> 0 | V30: Income 1 | W30: =B30+B31+B32+BI9 -> 0 | X30: Income 1 | Y30: =B47+B48+B49+BI14 -> 0 | Z30: Income 1 | AA30: =B64+B65+B66+BI21 -> 0
A31: Secondary | B31: =IF(M10=1,AD9,Z9+AA9+AB9+AC9) -> 0 | D31: Secondary | E31: =IF(O10=1,AD10,Z10+AA10+AB10+AC10) -> 0 | G31: Secondary | H31: =IF(Q10=1,AD11,Z11+AA11+AB11+AC11) -> 0 | T31: Income 2 | U31: =E14+E15+E16+BI5 -> 0 | V31: Income 2 | W31: =E30+E31+E32+BI10 -> 0 | X31: Income 2 | Y31: =E47+E48+E49+BI15 -> 0 | Z31: Income 2 | AA31: =E64+E65+E66+BI22 -> 0
A32: Self Employed | B32: =IF(M10=1,AI9,AE9+AF9+AG9+AH9) -> 0 | D32: Self Employed | E32: =IF(O10=1,AI10,AE10+AF10+AG10+AH10) -> 0 | G32: Self Employed | H32: =IF(Q10=1,AI11,AE11+AF11+AG11+AH11) -> 0 | T32: Income 3 | U32: =H14+H15+H16+BI6 -> 0 | V32: Income 3 | W32: =H30+H31+H32+BI11 -> 0 | X32: Income 3 | Y32: =H47+H48+H49+BI16 -> 0 | Z32: Income 3 | AA32: =H64+H65+H66+BI23 -> 0
U33: =SUM(U30:U32) -> 0 | W33: =SUM(W30:W32) -> 0 | Y33: =SUM(Y30:Y32) -> 0 | AA33: =SUM(AA30:AA32) -> 0 | AC33: =U33+W33+Y33+AA33 -> 0
B34: Borrower 3 Income Type
B35: Income Type 1 | E35: Income Type 2 | H35: Income Type 3
B36: Primary Employment | C36: 1 | D36: =IF(C36=1,'Loan Affordability Calculator'!B74,0) -> 0 | E36: Secondary Employment | F36: 9 | G36: =IF(F36=1,'Loan Affordability Calculator'!B75,0) -> 0 | H36: Secondary Employment | I36: 9 | J36: =IF(I36=1,'Loan Affordability Calculator'!B76,0) -> 0
B37: Secondary Employment | D37: =IF(C36=2,'Loan Affordability Calculator'!B74,0) -> 0 | E37: Self Employed | G37: =IF(F36=2,'Loan Affordability Calculator'!B75,0) -> 0 | H37: Self Employed | J37: =IF(I36=2,'Loan Affordability Calculator'!B76,0) -> 0
B38: Self Employed | D38: =IF(C36=3,'Loan Affordability Calculator'!B74,0) -> 0 | E38: Rent (Metro & Regional) | G38: =IF(F36=3,'Loan Affordability Calculator'!B75,0) -> 0 | H38: Rent (Metro & Regional) | J38: =IF(I36=3,'Loan Affordability Calculator'!B76,0) -> 0
B39: Rent (Metro & Regional) | D39: =IF(C36=4,'Loan Affordability Calculator'!B74,0) -> 0 | E39: Rent (National & Commercial) | G39: =IF(F36=4,'Loan Affordability Calculator'!B75,0) -> 0 | H39: Rent (National & Commercial) | J39: =IF(I36=4,'Loan Affordability Calculator'!B76,0) -> 0
B40: Rent (National & Commercial) | D40: =IF(C36=5,'Loan Affordability Calculator'!B74,0) -> 0 | E40: Rent (High Density Serviced Apartment) | G40: =IF(F36=5,'Loan Affordability Calculator'!B75,0) -> 0 | H40: Rent (High Density Serviced Apartment) | J40: =IF(I36=5,'Loan Affordability Calculator'!B76,0) -> 0
B41: Rent (High Density Serviced Apartment) | D41: =IF(C36=6,'Loan Affordability Calculator'!B74,0) -> 0 | E41: Superannuation | G41: =IF(F36=6,'Loan Affordability Calculator'!B75,0) -> 0 | H41: Superannuation | J41: =IF(I36=6,'Loan Affordability Calculator'!B76,0) -> 0
B42: Superannuation | D42: =IF(C36=7,'Loan Affordability Calculator'!B74,0) -> 0 | E42: Government Benefits | G42: =IF(F36=7,'Loan Affordability Calculator'!B75,0) -> 0 | H42: Government Benefits | J42: =IF(I36=7,'Loan Affordability Calculator'!B76,0) -> 0
B43: Government Benefits | D43: =IF(C36=8,'Loan Affordability Calculator'!B74,0) -> 0 | E43: Child Support | G43: =IF(F36=8,'Loan Affordability Calculator'!B75,0) -> 0 | H43: Child Support | J43: =IF(I36=8,'Loan Affordability Calculator'!B76,0) -> 0
B44: Child Support | D44: =IF(C36=9,'Loan Affordability Calculator'!B74,0) -> 0 | E44: N/A | H44: N/A
A47: Primary | B47: =IF(M15=1,Y14,X14+U14+V14+W14) -> 0
A48: Secondary | B48: =IF(M15=1,AD14,AC14+Z14+AA14+AB14) -> 0 | D48: Secondary | E48: =IF(O15=1,AD15,Z15+AA15+AB15+AC15) -> 0 | G48: Secondary | H48: =IF(Q15=1,AD16,AC16+Z16+AA16+AB16) -> 0
A49: Self Employed | B49: =IF(M15=1,AI14,AH14+AE14+AF14+AG14) -> 0 | D49: Self Employed | E49: =IF(O15=1,AI15,AH15+AE15+AF15+AG15) -> 0 | G49: Self Employed | H49: =IF(Q15=1,AI16,AH16+AE16+AF16+AG16) -> 0
B51: Borrower 4 Income Type
B52: Income Type 1 | E52: Income Type 2 | H52: Income Type 3
B53: Primary Employment | C53: 1 | D53: =IF(C53=1,'Loan Affordability Calculator'!B99,0) -> 0 | E53: Secondary Employment | F53: 9 | G53: =IF(F53=1,'Loan Affordability Calculator'!B100,0) -> 0 | H53: Secondary Employment | I53: 9 | J53: =IF(I53=1,'Loan Affordability Calculator'!B101,0) -> 0
B54: Secondary Employment | D54: =IF(C53=2,'Loan Affordability Calculator'!B99,0) -> 0 | E54: Self Employed | G54: =IF(F53=2,'Loan Affordability Calculator'!B100,0) -> 0 | H54: Self Employed | J54: =IF(I53=2,'Loan Affordability Calculator'!B101,0) -> 0
B55: Self Employed | D55: =IF(C53=3,'Loan Affordability Calculator'!B99,0) -> 0 | E55: Rent (Metro & Regional) | G55: =IF(F53=3,'Loan Affordability Calculator'!B100,0) -> 0 | H55: Rent (Metro & Regional) | J55: =IF(I53=3,'Loan Affordability Calculator'!B101,0) -> 0
B56: Rent (Metro & Regional) | D56: =IF(C53=4,'Loan Affordability Calculator'!B99,0) -> 0 | E56: Rent (National & Commercial) | G56: =IF(F53=4,'Loan Affordability Calculator'!B100,0) -> 0 | H56: Rent (National & Commercial) | J56: =IF(I53=4,'Loan Affordability Calculator'!B101,0) -> 0
B57: Rent (National & Commercial) | D57: =IF(C53=5,'Loan Affordability Calculator'!B99,0) -> 0 | E57: Rent (High Density Serviced Apartment) | G57: =IF(F53=5,'Loan Affordability Calculator'!B100,0) -> 0 | H57: Rent (High Density Serviced Apartment) | J57: =IF(I53=5,'Loan Affordability Calculator'!B101,0) -> 0
B58: Rent (High Density Serviced Apartment) | D58: =IF(C53=6,'Loan Affordability Calculator'!B99,0) -> 0 | E58: Superannuation | G58: =IF(F53=6,'Loan Affordability Calculator'!B100,0) -> 0 | H58: Superannuation | J58: =IF(I53=6,'Loan Affordability Calculator'!B101,0) -> 0
B59: Superannuation | D59: =IF(C53=7,'Loan Affordability Calculator'!B99,0) -> 0 | E59: Government Benefits | G59: =IF(F53=7,'Loan Affordability Calculator'!B100,0) -> 0 | H59: Government Benefits | J59: =IF(I53=7,'Loan Affordability Calculator'!B101,0) -> 0
B60: Government Benefits | D60: =IF(C53=8,'Loan Affordability Calculator'!B99,0) -> 0 | E60: Child Support | G60: =IF(F53=8,'Loan Affordability Calculator'!B100,0) -> 0 | H60: Child Support | J60: =IF(I53=8,'Loan Affordability Calculator'!B101,0) -> 0
B61: Child Support | D61: =IF(C53=9,'Loan Affordability Calculator'!B99,0) -> 0 | E61: N/A | H61: N/A
A64: Primary | B64: =IF(M22=1,Y21,X21+U21+V21+W21) -> 0
A65: Secondary | B65: =IF(M22=1,AD21,AC21+Z21+AA21+AB21) -> 0 | D65: Secondary | E65: =IF(O22=1,AD22,AC22+Z22+AA22+AB22) -> 0 | G65: Secondary | H65: =IF(Q22=1,AD23,AC23+Z23+AA23+AB23) -> 0
B66: =IF(M22=1,AI21,AH21+AE21+AF21+AG21) -> 0 | D66: Self Employed | E66: =IF(O22=1,AI22,AH22+AE22+AF22+AG22) -> 0 | G66: Self Employed | H66: =IF(Q22=1,AI23,AH23+AE23+AF23+AG23) -> 0

Sheet Tax Rates (hidden)
O1: Tax Calculator
C5: TAX RATES (Primary Income) | K5: TAX RATES (Secondary Employment - No Tax Free Threshold)
C6: Where the employee claimed the tax-free threshold in Tax file number declaration SCALE 2 | K6: Where the tax-free threshold is not claimed in Tax file number declaration SCALE 1
C7: Weekly earnings (x) less than $ | D7: Weekly earnings equal or greater than $ | E7: a | F7: b | K7: Weekly earnings (x) less than $ | L7: Weekly earnings equal or greater than $ | M7: a | N7: b
C8: 355 | D8: 0 | E8: 0 | F8: 0 | K8: 72 | L8: 0 | M8: 0.19 | N8: 0.19
C9: 422 | D9: 355 | E9: 0.19 | F9: 67.4635 | K9: 361 | L9: 72 | M9: 0.2342 | N9: 3.213
C10: 528 | D10: 422 | E10: 0.29 | F10: 109.7327 | K10: 932 | L10: 361 | M10: 0.3477 | N10: 44.2476 | R10: 20.5 | S10: 19
C11: 711 | D11: 528 | E11: 0.21 | F11: 67.4635 | K11: 1380 | L11: 932 | M11: 0.345 | N11: 41.7311 | R11: 34 | S11: 32.5
C12: 1282 | D12: 711 | E12: 0.3477 | F12: 165.4423 | K12: 3111 | L12: 1380 | M12: 0.39 | N12: 103.8657 | R12: 38.5 | S12: 37
C13: 1730 | D13: 1282 | E13: 0.345 | F13: 161.9808 | K13: 3111 & over | L13: 3111 | M13: 0.47 | N13: 352.7888 | R13: 46.5 | S13: 45
C14: 3461 | D14: 1730 | E14: 0.39 | F14: 239.8654
C15: 3461 & Over | D15: 3461 | E15: 0.47 | F15: 516.7885
E17: Borrower 1
D18: Primary Income 1 | J18: Secondary Income 1 | P18: Self Employed Income 1 | X18: Secondary Income 2 | AB18: Self Employed Income 2 | AG18: Secondary Income 3 | AK18: Self Employed Income 3
D19: Weekly Taxable Income | F19: =F51 -> 0 | J19: Weekly Taxable Income | L19: =L51 -> 0 | P19: Weekly Taxable Income | R19: =R51 -> 0 | X19: Weekly Taxable Income | Z19: =Z51 -> 0 | AB19: Weekly Taxable Income | AD19: =AD51 -> 0 | AG19: Weekly Taxable Income | AI19: =AI51 -> 0 | AK19: Weekly Taxable Income | AM19: =AM51 -> 0
D20: x (add 99c) | F20: =IF((INT(F19)+0.99=0.99),0,(INT(F19)+0.99)) -> 0 | J20: x (add 99c) | L20: =IF((INT(L19)+0.99=0.99),0,(INT(L19)+0.99)) -> 0 | P20: x (add 99c) | R20: =IF((INT(R19)+0.99=0.99),0,(INT(R19)+0.99)) -> 0 | X20: x (add 99c) | Z20: =IF((INT(Z19)+0.99=0.99),0,(INT(Z19)+0.99)) -> 0 | AB20: x (add 99c) | AD20: =IF((INT(AD19)+0.99=0.99),0,(INT(AD19)+0.99)) -> 0 | AG20: x (add 99c) | AI20: =IF((INT(AI19)+0.99=0.99),0,(INT(AI19)+0.99)) -> 0 | AK20: x (add 99c) | AM20: =IF((INT(AM19)+0.99=0.99),0,(INT(AM19)+0.99)) -> 0
D21: a | F21: =IF(F19=0,0,VLOOKUP(F19,$D$8:$F$15,2)) -> 0 | J21: a | L21: =IF(L19=0,0,VLOOKUP(L19,$L$8:$N$13,2)) -> 0 | P21: a | R21: =IF(R19=0,0,VLOOKUP(R19,$D$8:$F$15,2)) -> 0 | X21: a | Z21: =IF(Z19=0,0,VLOOKUP(Z19,$L$8:$N$13,2)) -> 0 | AB21: a | AD21: =IF(AD19=0,0,VLOOKUP(AD19,$D$8:$F$15,2)) -> 0 | AG21: a | AI21: =IF(AI19=0,0,VLOOKUP(AI19,$L$8:$N$13,2)) -> 0 | AK21: a | AM21: =IF(AM19=0,0,VLOOKUP(AM19,$D$8:$F$15,2)) -> 0
D22: b | F22: =IF(F19=0,0,VLOOKUP(F19,$D$8:$F$15,3)) -> 0 | J22: b | L22: =IF(L19=0,0,VLOOKUP(L19,$L$8:$N$13,3)) -> 0 | P22: b | R22: =IF(R19=0,0,VLOOKUP(R19,$D$8:$F$15,3)) -> 0 | X22: b | Z22: =IF(Z19=0,0,VLOOKUP(Z19,$L$8:$N$13,3)) -> 0 | AB22: b | AD22: =IF(AD19=0,0,VLOOKUP(AD19,$D$8:$F$15,3)) -> 0 | AG22: b | AI22: =IF(AI19=0,0,VLOOKUP(AI19,$L$8:$N$13,3)) -> 0 | AK22: b | AM22: =IF(AM19=0,0,VLOOKUP(AM19,$D$8:$F$15,3)) -> 0
D23: y=ax-b (Weekly Tax) | F23: =ROUND(((F21*F20)-F22),0) -> 0 | J23: y=ax-b (Weekly Tax) | L23: =ROUND(((L21*L20)-L22),0) -> 0 | P23: y=ax-b (Weekly Tax) | R23: =ROUND(((R21*R20)-R22),0) -> 0 | X23: y=ax-b (Weekly Tax) | Z23: =ROUND(((Z21*Z20)-Z22),0) -> 0 | AB23: y=ax-b (Weekly Tax) | AD23: =ROUND(((AD21*AD20)-AD22),0) -> 0 | AG23: y=ax-b (Weekly Tax) | AI23: =ROUND(((AI21*AI20)-AI22),0) -> 0 | AK23: y=ax-b (Weekly Tax) | AM23: =ROUND(((AM21*AM20)-AM22),0) -> 0
D24: Weekly Pay | F24: =F19-F23 -> 0 | J24: Weekly Pay | L24: =L19-L23 -> 0 | P24: Weekly Pay | R24: =R19-R23 -> 0 | X24: Weekly Pay | Z24: =Z19-Z23 -> 0 | AB24: Weekly Pay | AD24: =AD19-AD23 -> 0 | AG24: Weekly Pay | AI24: =AI19-AI23 -> 0 | AK24: Weekly Pay | AM24: =AM19-AM23 -> 0
D25: Monthly Tax | F25: =ROUND(((F23*13)/3),0) -> 0 | J25: Monthly Tax | L25: =ROUND(((L23*13)/3),0) -> 0 | P25: Monthly Tax | R25: =ROUND(((R23*13)/3),0) -> 0 | X25: Monthly Tax | Z25: =ROUND(((Z23*13)/3),0) -> 0 | AB25: Monthly Tax | AD25: =ROUND(((AD23*13)/3),0) -> 0 | AG25: Monthly Tax | AI25: =ROUND(((AI23*13)/3),0) -> 0 | AK25: Monthly Tax | AM25: =ROUND(((AM23*13)/3),0) -> 0
D26: Monthly Pay | F26: =('Income Data'!$U4+'Income Data'!$V4+'Income Data'!$W4+'Income Data'!$X4)-F25 -> 0 | J26: Monthly Pay | L26: =('Income Data'!$Z4+'Income Data'!$AA4+'Income Data'!$AB4+'Income Data'!$AC4)-L25 -> 0 | P26: Monthly Pay | R26: =('Income Data'!$AE4+'Income Data'!$AF4+'Income Data'!$AG4+'Income Data'!$AH4)-R25 -> 0 | X26: Monthly Pay | Z26: =('Income Data'!$Z5+'Income Data'!$AA5+'Income Data'!$AB5+'Income Data'!$AC5)-Z25 -> 0 | AB26: Monthly Pay | AD26: =('Income Data'!$AE5+'Income Data'!$AF5+'Income Data'!$AG5+'Income Data'!$AH5)-AD25 -> 0 | AG26: Monthly Pay | AI26: =('Income Data'!$Z6+'Income Data'!$AA6+'Income Data'!$AB6+'Income Data'!$AC6)-AI25 -> 0 | AK26: Monthly Pay | AM26: =('Income Data'!$AE6+'Income Data'!$AF6+'Income Data'!$AG6+'Income Data'!$AH6)-AM25 -> 0
D46: Convert Monthly figure from Income Data to Weekly | J46: Convert Monthly figure from Income Data to Weekly | P46: Convert Monthly figure from Income Data to Weekly | X46: Convert Monthly figure from Income Data to Weekly | AB46: Convert Monthly figure from Income Data to Weekly | AG46: Convert Monthly figure from Income Data to Weekly | AK46: Convert Monthly figure from Income Data to Weekly
D47: per annum | F47: =IF('Income Data'!C3=1,(('Income Data'!X4*3)/13),0) -> 0 | J47: per annum | L47: =IF('Income Data'!C3=2,((('Income Data'!AC4)*3)/13),0) -> 0 | P47: per annum | R47: =IF('Income Data'!C3=3,((('Income Data'!AH4)*3)/13),0) -> 0 | X47: per annum | Z47: =IF('Income Data'!F3=1,(('Income Data'!AC5*3)/13),0) -> 0 | AB47: per annum | AD47: =IF('Income Data'!F3=2,('Income Data'!AH5*3)/13,0) -> 0 | AG47: per annum | AI47: =IF('Income Data'!I3=1,(('Income Data'!AC6*3)/13),0) -> 0 | AK47: per annum | AM47: =IF('Income Data'!I3=2,(('Income Data'!AH6*3)/13),0) -> 0
D48: per month | F48: =IF('Income Data'!C3=1,((('Income Data'!W4)*3)/13),0) -> 0 | J48: per month | L48: =IF('Income Data'!C3=2,((('Income Data'!AB4)*3)/13),0) -> 0 | P48: per month | R48: =IF('Income Data'!C3=3,((('Income Data'!AG4)*3)/13),0) -> 0 | X48: per month | Z48: =IF('Income Data'!F3=1,(('Income Data'!AB5*3)/13),0) -> 0 | AB48: per month | AD48: =IF('Income Data'!F3=2,(('Income Data'!AG5*3)/13),0) -> 0 | AG48: per month | AI48: =IF('Income Data'!I3=1,(('Income Data'!AB6*3)/13),0) -> 0 | AK48: per month | AM48: =IF('Income Data'!I3=2,(('Income Data'!AG6*3)/13),0) -> 0
D49: per fortnight | F49: =IF('Income Data'!C3=1,((('Income Data'!V4)*3)/13),0) -> 0 | J49: per fortnight | L49: =IF('Income Data'!C3=2,((('Income Data'!AA4)*3)/13),0) -> 0 | P49: per fortnight | R49: =IF('Income Data'!C3=3,((('Income Data'!AF4)*3)/13),0) -> 0 | X49: per fortnight | Z49: =IF('Income Data'!F3=1,(('Income Data'!AA5)*3/13),0) -> 0 | AB49: per fortnight | AD49: =IF('Income Data'!F3=2,(('Income Data'!AF5*3)/13),0) -> 0 | AG49: per fortnight | AI49: =IF('Income Data'!I3=1,(('Income Data'!AA6*3)/13),0) -> 0 | AK49: per fortnight | AM49: =IF('Income Data'!I3=2,(('Income Data'!AF6*3)/13),0) -> 0
D50: per week | F50: =IF('Income Data'!C3=1,((('Income Data'!U4)*3)/13),0) -> 0 | J50: per week | L50: =IF('Income Data'!C3=2,((('Income Data'!Z4)*3)/13),0) -> 0 | P50: per week | R50: =IF('Income Data'!C3=3,((('Income Data'!AE4)*3)/13),0) -> 0 | X50: per week | Z50: =IF('Income Data'!F3=1,(('Income Data'!Z5*3)/13),0) -> 0 | AB50: per week | AD50: =IF('Income Data'!F3=2,(('Income Data'!AE5*3)/13),0) -> 0 | AG50: per week | AI50: =IF('Income Data'!I3=1,(('Income Data'!Z6*3)/13),0) -> 0 | AK50: per week | AM50: =IF('Income Data'!I3=2,(('Income Data'!AE6*3)/13),0) -> 0
F51: =F47+F48+F49+F50 -> 0 | L51: =L47+L48+L49+L50 -> 0 | R51: =R47+R48+R49+R50 -> 0 | Z51: =Z47+Z48+Z49+Z50 -> 0 | AD51: =AD47+AD48+AD49+AD50 -> 0 | AI51: =AI47+AI48+AI49+AI50 -> 0 | AM51: =AM47+AM48+AM49+AM50 -> 0
D53: Monthy amount if Pay is | E53: Monthly
D54: Weekly | E54: =IF('Income Data'!S4=1,((F33*13)/3),0) -> 0
D55: Fortnightly | E55: =IF('Income Data'!S4=2,((F33/2)*13)/3,0) -> 0
D56: Monthly | E56: =IF('Income Data'!S4=3,F33,0) -> 0
D57: Annually | E57: =IF('Income Data'!S4=4,'Tax Rates'!F48,0) -> 0
D58: USE | E58: =E54+E55+E56+E57 -> 0
D73: Borrower 2
D74: Primary Income 1 | J74: Secondary Income 1 | P74: Self Employed Income 1 | X74: Secondary Income 2 | AB74: Self Employed Income 2 | AG74: Secondary Income 3 | AK74: Self Employed Income 3
D75: Weekly Taxable Income | F75: =F99 -> 0 | J75: Weekly Taxable Income | L75: =L99 -> 0 | P75: Weekly Taxable Income | R75: =R99 -> 0 | X75: Weekly Taxable Income | Z75: =Z99 -> 0 | AB75: Weekly Taxable Income | AD75: =AD99 -> 0 | AG75: Weekly Taxable Income | AI75: =AI99 -> 0 | AK75: Weekly Taxable Income | AM75: =AM99 -> 0
D76: x (add 99c) | F76: =IF((INT(F75)+0.99=0.99),0,(INT(F75)+0.99)) -> 0 | J76: x (add 99c) | L76: =IF((INT(L75)+0.99=0.99),0,(INT(L75)+0.99)) -> 0 | P76: x (add 99c) | R76: =IF((INT(R75)+0.99=0.99),0,(INT(R75)+0.99)) -> 0 | X76: x (add 99c) | Z76: =IF((INT(Z75)+0.99=0.99),0,(INT(Z75)+0.99)) -> 0 | AB76: x (add 99c) | AD76: =IF((INT(AD75)+0.99=0.99),0,(INT(AD75)+0.99)) -> 0 | AG76: x (add 99c) | AI76: =IF((INT(AI75)+0.99=0.99),0,(INT(AI75)+0.99)) -> 0 | AK76: x (add 99c) | AM76: =IF((INT(AM75)+0.99=0.99),0,(INT(AM75)+0.99)) -> 0
D77: a | F77: =IF(F75=0,0,VLOOKUP(F75,$D$8:$F$15,2)) -> 0 | J77: a | L77: =IF(L75=0,0,VLOOKUP(L75,$L$8:$N$13,2)) -> 0 | P77: a | R77: =IF(R75=0,0,VLOOKUP(R75,$D$8:$F$15,2)) -> 0 | X77: a | Z77: =IF(Z75=0,0,VLOOKUP(Z75,$L$8:$N$13,2)) -> 0 | AB77: a | AD77: =IF(AD75=0,0,VLOOKUP(AD75,$D$8:$F$15,2)) -> 0 | AG77: a | AI77: =IF(AI75=0,0,VLOOKUP(AI75,$L$8:$N$13,2)) -> 0 | AK77: a | AM77: =IF(AM75=0,0,VLOOKUP(AM75,$D$8:$F$15,2)) -> 0
D78: b | F78: =IF(F75=0,0,VLOOKUP(F75,$D$8:$F$15,3)) -> 0 | J78: b | L78: =IF(L75=0,0,VLOOKUP(L75,$L$8:$N$13,3)) -> 0 | P78: b | R78: =IF(R75=0,0,VLOOKUP(R75,$D$8:$F$15,3)) -> 0 | X78: b | Z78: =IF(Z75=0,0,VLOOKUP(Z75,$L$8:$N$13,3)) -> 0 | AB78: b | AD78: =IF(AD75=0,0,VLOOKUP(AD75,$D$8:$F$15,3)) -> 0 | AG78: b | AI78: =IF(AI75=0,0,VLOOKUP(AI75,$L$8:$N$13,3)) -> 0 | AK78: b | AM78: =IF(AM75=0,0,VLOOKUP(AM75,$D$8:$F$15,3)) -> 0
D79: y=ax-b (Weekly Tax) | F79: =ROUND(((F77*F76)-F78),0) -> 0 | J79: y=ax-b (Weekly Tax) | L79: =ROUND(((L77*L76)-L78),0) -> 0 | P79: y=ax-b (Weekly Tax) | R79: =ROUND(((R77*R76)-R78),0) -> 0 | X79: y=ax-b (Weekly Tax) | Z79: =ROUND(((Z77*Z76)-Z78),0) -> 0 | AB79: y=ax-b (Weekly Tax) | AD79: =ROUND(((AD77*AD76)-AD78),0) -> 0 | AG79: y=ax-b (Weekly Tax) | AI79: =ROUND(((AI77*AI76)-AI78),0) -> 0 | AK79: y=ax-b (Weekly Tax) | AM79: =ROUND(((AM77*AM76)-AM78),0) -> 0
D80: Weekly Pay | F80: =F75-F79 -> 0 | J80: Weekly Pay | L80: =L75-L79 -> 0 | P80: Weekly Pay | R80: =R75-R79 -> 0 | X80: Weekly Pay | Z80: =Z75-Z79 -> 0 | AB80: Weekly Pay | AD80: =AD75-AD79 -> 0 | AG80: Weekly Pay | AI80: =AI75-AI79 -> 0 | AK80: Weekly Pay | AM80: =AM75-AM79 -> 0
D81: Monthly Tax | F81: =ROUND(((F79*13)/3),0) -> 0 | J81: Monthly Tax | L81: =ROUND(((L79*13)/3),0) -> 0 | P81: Monthly Tax | R81: =ROUND(((R79*13)/3),0) -> 0 | X81: Monthly Tax | Z81: =ROUND(((Z79*13)/3),0) -> 0 | AB81: Monthly Tax | AD81: =ROUND(((AD79*13)/3),0) -> 0 | AG81: Monthly Tax | AI81: =ROUND(((AI79*13)/3),0) -> 0 | AK81: Monthly Tax | AM81: =ROUND(((AM79*13)/3),0) -> 0
D82: Monthly Pay | F82: =('Income Data'!$U9+'Income Data'!$V9+'Income Data'!$W9+'Income Data'!$X9)-F81 -> 0 | J82: Monthly Pay | L82: =('Income Data'!$Z9+'Income Data'!$AA9+'Income Data'!$AB9+'Income Data'!$AC9)-L81 -> 0 | P82: Monthly Pay | R82: =('Income Data'!$AE9+'Income Data'!$AF9+'Income Data'!$AG9+'Income Data'!$AH9)-R81 -> 0 | X82: Monthly Pay | Z82: =('Income Data'!$Z10+'Income Data'!$AA10+'Income Data'!$AB10+'Income Data'!$AC10)-Z81 -> 0 | AB82: Monthly Pay | AD82: =('Income Data'!$AE10+'Income Data'!$AF10+'Income Data'!$AG10+'Income Data'!$AH10)-AD81 -> 0 | AG82: Monthly Pay | AI82: =('Income Data'!$Z11+'Income Data'!$AA11+'Income Data'!$AB11+'Income Data'!$AC11)-AI81 -> 0 | AK82: Monthly Pay | AM82: =('Income Data'!$AE11+'Income Data'!$AF11+'Income Data'!$AG11+'Income Data'!$AH11)-AM81 -> 0
D94: Convert Monthly figure from Income Data to Weekly | J94: Convert Monthly figure from Income Data to Weekly | P94: Convert Monthly figure from Income Data to Weekly | X94: Convert Monthly figure from Income Data to Weekly | AB94: Convert Monthly figure from Income Data to Weekly | AG94: Convert Monthly figure from Income Data to Weekly | AK94: Convert Monthly figure from Income Data to Weekly
D95: per annum | F95: =IF('Income Data'!C19=1,(('Income Data'!X9*3)/13),0) -> 0 | J95: per annum | L95: =IF('Income Data'!C19=2,(('Income Data'!AC9*3)/13),0) -> 0 | P95: per annum | R95: =IF('Income Data'!C19=3,(('Income Data'!AH9*3)/13),0) -> 0 | X95: per annum | Z95: =IF('Income Data'!F19=1,(('Income Data'!AC10*3)/13),0) -> 0 | AB95: per annum | AD95: =IF('Income Data'!F19=2,(('Income Data'!AH10*3)/13),0) -> 0 | AG95: per annum | AI95: =IF('Income Data'!I19=1,(('Income Data'!AC11*3)/13),0) -> 0 | AK95: per annum | AM95: =IF('Income Data'!I19=2,(('Income Data'!AH11*3)/13),0) -> 0
D96: per month | F96: =IF('Income Data'!C19=1,(('Income Data'!W9*3)/13),0) -> 0 | J96: per month | L96: =IF('Income Data'!C19=2,(('Income Data'!AB9*3)/13),0) -> 0 | P96: per month | R96: =IF('Income Data'!C19=3,(('Income Data'!AG9*3)/13),0) -> 0 | X96: per month | Z96: =IF('Income Data'!F19=1,(('Income Data'!AB10*3)/13),0) -> 0 | AB96: per month | AD96: =IF('Income Data'!F19=2,(('Income Data'!AG10*3)/13),0) -> 0 | AG96: per month | AI96: =IF('Income Data'!I19=1,(('Income Data'!AB11*3)/13),0) -> 0 | AK96: per month | AM96: =IF('Income Data'!I19=2,(('Income Data'!AG11*3)/13),0) -> 0
D97: per fortnight | F97: =IF('Income Data'!C19=1,(('Income Data'!V9*3)/13),0) -> 0 | J97: per fortnight | L97: =IF('Income Data'!C19=2,(('Income Data'!AA9*3)/13),0) -> 0 | P97: per fortnight | R97: =IF('Income Data'!C19=3,(('Income Data'!AF9*3)/13),0) -> 0 | X97: per fortnight | Z97: =IF('Income Data'!F19=1,(('Income Data'!AA10*3)/13),0) -> 0 | AB97: per fortnight | AD97: =IF('Income Data'!F19=2,(('Income Data'!AF10*3)/13),0) -> 0 | AG97: per fortnight | AI97: =IF('Income Data'!I19=1,(('Income Data'!AA11*3)/13),0) -> 0 | AK97: per fortnight | AM97: =IF('Income Data'!I19=2,(('Income Data'!AF11*3)/13),0) -> 0
D98: per week | F98: =IF('Income Data'!C19=1,(('Income Data'!U9*3)/13),0) -> 0 | J98: per week | L98: =IF('Income Data'!C19=2,(('Income Data'!Z9*3)/13),0) -> 0 | P98: per week | R98: =IF('Income Data'!C19=3,(('Income Data'!AE9*3)/13),0) -> 0 | X98: per week | Z98: =IF('Income Data'!F19=1,(('Income Data'!Z10*3)/13),0) -> 0 | AB98: per week | AD98: =IF('Income Data'!F19=2,(('Income Data'!AE10*3)/13),0) -> 0 | AG98: per week | AI98: =IF('Income Data'!I19=1,(('Income Data'!Z11*3)/13),0) -> 0 | AK98: per week | AM98: =IF('Income Data'!I19=2,(('Income Data'!AE11*3)/13),0) -> 0
F99: =F95+F96+F97+F98 -> 0 | L99: =L95+L96+L97+L98 -> 0 | R99: =R95+R96+R97+R98 -> 0 | Z99: =Z95+Z96+Z97+Z98 -> 0 | AD99: =AD95+AD96+AD97+AD98 -> 0 | AI99: =AI95+AI96+AI97+AI98 -> 0 | AM99: =AM95+AM96+AM97+AM98 -> 0
D104: Income to Use | E104: Monthly
D105: Weekly | E105: =IF('Income Data'!S54=1,'Tax Rates'!V96,0) -> 0
D106: Fortnightly | E106: =IF('Income Data'!S54=2,'Tax Rates'!R96,0) -> 0
D107: Monthly | E107: =IF('Income Data'!S54=3,'Tax Rates'!L96,0) -> 0
D108: Annually | E108: =IF('Income Data'!S54=4,'Tax Rates'!F96,0) -> 0
D109: USE | E109: =E105+E106+E107+E108 -> 0
D124: Borrower 3
D125: Primary Income 1 | J125: Secondary Income 1 | P125: Self Employed Income 1 | X125: Secondary Income 2 | AB125: Self Employed Income 2 | AG125: Secondary Income 3 | AK125: Self Employed Income 3
D126: Weekly Taxable Income | F126: =F149 -> 0 | J126: Weekly Taxable Income | L126: =L149 -> 0 | P126: Weekly Taxable Income | R126: =R149 -> 0 | X126: Weekly Taxable Income | Z126: =Z149 -> 0 | AB126: Weekly Taxable Income | AD126: =AD149 -> 0 | AG126: Weekly Taxable Income | AI126: =AI149 -> 0 | AK126: Weekly Taxable Income | AM126: =AM149 -> 0
D127: x (add 99c) | F127: =IF((INT(F126)+0.99=0.99),0,(INT(F126)+0.99)) -> 0 | J127: x (add 99c) | L127: =IF((INT(L126)+0.99=0.99),0,(INT(L126)+0.99)) -> 0 | P127: x (add 99c) | R127: =IF((INT(R126)+0.99=0.99),0,(INT(R126)+0.99)) -> 0 | X127: x (add 99c) | Z127: =IF((INT(Z126)+0.99=0.99),0,(INT(Z126)+0.99)) -> 0 | AB127: x (add 99c) | AD127: =IF((INT(AD126)+0.99=0.99),0,(INT(AD126)+0.99)) -> 0 | AG127: x (add 99c) | AI127: =IF((INT(AI126)+0.99=0.99),0,(INT(AI126)+0.99)) -> 0 | AK127: x (add 99c) | AM127: =IF((INT(AM126)+0.99=0.99),0,(INT(AM126)+0.99)) -> 0
D128: a | F128: =IF(F126=0,0,VLOOKUP(F126,$D$8:$F$15,2)) -> 0 | J128: a | L128: =IF(L126=0,0,VLOOKUP(L126,$L$8:$N$13,2)) -> 0 | P128: a | R128: =IF(R126=0,0,VLOOKUP(R126,$D$8:$F$15,2)) -> 0 | X128: a | Z128: =IF(Z126=0,0,VLOOKUP(Z126,$L$8:$N$13,2)) -> 0 | AB128: a | AD128: =IF(AD126=0,0,VLOOKUP(AD126,$D$8:$F$15,2)) -> 0 | AG128: a | AI128: =IF(AI126=0,0,VLOOKUP(AI126,$L$8:$N$13,2)) -> 0 | AK128: a | AM128: =IF(AM126=0,0,VLOOKUP(AM126,$D$8:$F$15,2)) -> 0
D129: b | F129: =IF(F126=0,0,VLOOKUP(F126,$D$8:$F$15,3)) -> 0 | J129: b | L129: =IF(L126=0,0,VLOOKUP(L126,$L$8:$N$13,3)) -> 0 | P129: b | R129: =IF(R126=0,0,VLOOKUP(R126,$D$8:$F$15,3)) -> 0 | X129: b | Z129: =IF(Z126=0,0,VLOOKUP(Z126,$L$8:$N$13,3)) -> 0 | AB129: b | AD129: =IF(AD126=0,0,VLOOKUP(AD126,$D$8:$F$15,3)) -> 0 | AG129: b | AI129: =IF(AI126=0,0,VLOOKUP(AI126,$L$8:$N$13,3)) -> 0 | AK129: b | AM129: =IF(AM126=0,0,VLOOKUP(AM126,$D$8:$F$15,3)) -> 0
D130: y=ax-b (Weekly Tax) | F130: =ROUND(((F128*F127)-F129),0) -> 0 | J130: y=ax-b (Weekly Tax) | L130: =ROUND(((L128*L127)-L129),0) -> 0 | P130: y=ax-b (Weekly Tax) | R130: =ROUND(((R128*R127)-R129),0) -> 0 | X130: y=ax-b (Weekly Tax) | Z130: =ROUND(((Z128*Z127)-Z129),0) -> 0 | AB130: y=ax-b (Weekly Tax) | AD130: =ROUND(((AD128*AD127)-AD129),0) -> 0 | AG130: y=ax-b (Weekly Tax) | AI130: =ROUND(((AI128*AI127)-AI129),0) -> 0 | AK130: y=ax-b (Weekly Tax) | AM130: =ROUND(((AM128*AM127)-AM129),0) -> 0
D131: Weekly Pay | F131: =F126-F130 -> 0 | J131: Weekly Pay | L131: =L126-L130 -> 0 | P131: Weekly Pay | R131: =R126-R130 -> 0 | X131: Weekly Pay | Z131: =Z126-Z130 -> 0 | AB131: Weekly Pay | AD131: =AD126-AD130 -> 0 | AG131: Weekly Pay | AI131: =AI126-AI130 -> 0 | AK131: Weekly Pay | AM131: =AM126-AM130 -> 0
D132: Monthly Tax | F132: =ROUND(((F130*13)/3),0) -> 0 | J132: Monthly Tax | L132: =ROUND(((L130*13)/3),0) -> 0 | P132: Monthly Tax | R132: =ROUND(((R130*13)/3),0) -> 0 | X132: Monthly Tax | Z132: =ROUND(((Z130*13)/3),0) -> 0 | AB132: Monthly Tax | AD132: =ROUND(((AD130*13)/3),0) -> 0 | AG132: Monthly Tax | AI132: =ROUND(((AI130*13)/3),0) -> 0 | AK132: Monthly Tax | AM132: =ROUND(((AM130*13)/3),0) -> 0
D133: Monthly Pay | F133: =('Income Data'!$U14+'Income Data'!$V14+'Income Data'!$W14+'Income Data'!$X14)-F132 -> 0 | J133: Monthly Pay | L133: =('Income Data'!$Z14+'Income Data'!$AA14+'Income Data'!$AB14+'Income Data'!$AC14)-L132 -> 0 | P133: Monthly Pay | R133: =('Income Data'!$AE14+'Income Data'!$AF14+'Income Data'!$AG14+'Income Data'!$AH14)-R132 -> 0 | X133: Monthly Pay | Z133: =('Income Data'!$Z15+'Income Data'!$AA15+'Income Data'!$AB15+'Income Data'!$AC15)-Z132 -> 0 | AB133: Monthly Pay | AD133: =('Income Data'!$AE15+'Income Data'!$AF15+'Income Data'!$AG15+'Income Data'!$AH15)-AD132 -> 0 | AG133: Monthly Pay | AI133: =('Income Data'!$Z16+'Income Data'!$AA16+'Income Data'!$AB16+'Income Data'!$AC16)-AI132 -> 0 | AK133: Monthly Pay | AM133: =('Income Data'!$AE16+'Income Data'!$AF16+'Income Data'!$AG16+'Income Data'!$AH16)-AM132 -> 0
D144: Convert Monthly figure from Income Data to Weekly | J144: Convert Monthly figure from Income Data to Weekly | P144: Convert Monthly figure from Income Data to Weekly | X144: Convert Monthly figure from Income Data to Weekly | AB144: Convert Monthly figure from Income Data to Weekly | AG144: Convert Monthly figure from Income Data to Weekly
D145: per annum | F145: =IF('Income Data'!C36=1,(('Income Data'!X14*3)/13),0) -> 0 | J145: per annum | L145: =IF('Income Data'!C36=2,(('Income Data'!AC14*3)/13),0) -> 0 | P145: per annum | R145: =IF('Income Data'!C36=3,(('Income Data'!AH14*3)/13),0) -> 0 | X145: per annum | Z145: =IF('Income Data'!F36=1,(('Income Data'!AC15*3)/13),0) -> 0 | AB145: per annum | AD145: =IF('Income Data'!F36=2,(('Income Data'!AH15*3)/13),0) -> 0 | AG145: per annum | AI145: =IF('Income Data'!I36=1,(('Income Data'!AC16*3)/13),0) -> 0 | AK145: per annum | AM145: =IF('Income Data'!I36=2,(('Income Data'!AH16*3)/13),0) -> 0
D146: per month | F146: =IF('Income Data'!C36=1,(('Income Data'!W14*3)/13),0) -> 0 | J146: per month | L146: =IF('Income Data'!C36=2,(('Income Data'!AB14*3)/13),0) -> 0 | P146: per month | R146: =IF('Income Data'!C36=3,(('Income Data'!AG14*3)/13),0) -> 0 | X146: per month | Z146: =IF('Income Data'!F36=1,(('Income Data'!AB15*3)/13),0) -> 0 | AB146: per month | AD146: =IF('Income Data'!F36=2,(('Income Data'!AG15*3)/13),0) -> 0 | AG146: per month | AI146: =IF('Income Data'!I36=1,(('Income Data'!AB16*3)/13),0) -> 0 | AK146: per month | AM146: =IF('Income Data'!I36=2,(('Income Data'!AG16*3)/13),0) -> 0
D147: per fortnight | F147: =IF('Income Data'!C36=1,(('Income Data'!V14*3)/13),0) -> 0 | J147: per fortnight | L147: =IF('Income Data'!C36=2,(('Income Data'!AA14*3)/13),0) -> 0 | P147: per fortnight | R147: =IF('Income Data'!C36=3,(('Income Data'!AF14*3)/13),0) -> 0 | X147: per fortnight | Z147: =IF('Income Data'!F36=1,(('Income Data'!AA15*3)/13),0) -> 0 | AB147: per fortnight | AD147: =IF('Income Data'!F36=2,(('Income Data'!AF15*3)/13),0) -> 0 | AG147: per fortnight | AI147: =IF('Income Data'!I36=1,(('Income Data'!AA16*3)/13),0) -> 0 | AK147: per fortnight | AM147: =IF('Income Data'!I36=2,(('Income Data'!AF16*3)/13),0) -> 0
D148: per week | F148: =IF('Income Data'!C36=1,(('Income Data'!U14*3)/13),0) -> 0 | J148: per week | L148: =IF('Income Data'!C36=2,(('Income Data'!Z14*3)/13),0) -> 0 | P148: per week | R148: =IF('Income Data'!C36=3,(('Income Data'!AE14*3)/13),0) -> 0 | X148: per week | Z148: =IF('Income Data'!F36=1,(('Income Data'!Z15*3)/13),0) -> 0 | AB148: per week | AD148: =IF('Income Data'!F36=2,(('Income Data'!AE15*3)/13),0) -> 0 | AG148: per week | AI148: =IF('Income Data'!I36=1,(('Income Data'!Z16*3)/13),0) -> 0 | AK148: per week | AM148: =IF('Income Data'!I36=2,(('Income Data'!AE16*3)/13),0) -> 0
F149: =F145+F146+F147+F148 -> 0 | L149: =L145+L146+L147+L148 -> 0 | R149: =R145+R146+R147+R148 -> 0 | Z149: =Z145+Z146+Z147+Z148 -> 0 | AD149: =AD145+AD146+AD147+AD148 -> 0 | AI149: =AI145+AI146+AI147+AI148 -> 0 | AM149: =AM145+AM146+AM147+AM148 -> 0
D154: Income to Use | E154: Monthly
D155: Weekly | E155: =IF('Income Data'!S104=1,'Tax Rates'!V146,0) -> 0
D156: Fortnightly | E156: =IF('Income Data'!S104=2,'Tax Rates'!R146,0) -> 0
D157: Monthly | E157: =IF('Income Data'!S104=3,'Tax Rates'!L146,0) -> 0
D158: Annually | E158: =IF('Income Data'!S104=4,'Tax Rates'!F146,0) -> 0
D159: USE | E159: =E155+E156+E157+E158 -> 0
D174: Borrower 4
D175: Primary Income 1 | J175: Secondary Income 1 | P175: Self Employed Income 1 | X175: Secondary Income 2 | AB175: Self Employed Income 2 | AG175: Secondary Income 3 | AK175: Self Employed Income 3
D176: Weekly Taxable Income | F176: =F199 -> 0 | J176: Weekly Taxable Income | L176: =L199 -> 0 | P176: Weekly Taxable Income | R176: =R199 -> 0 | X176: Weekly Taxable Income | Z176: =Z199 -> 0 | AB176: Weekly Taxable Income | AD176: =AD199 -> 0 | AG176: Weekly Taxable Income | AI176: =AI199 -> 0 | AK176: Weekly Taxable Income | AM176: =AM199 -> 0
D177: x (add 99c) | F177: =IF((INT(F176)+0.99=0.99),0,(INT(F176)+0.99)) -> 0 | J177: x (add 99c) | L177: =IF((INT(L176)+0.99=0.99),0,(INT(L176)+0.99)) -> 0 | P177: x (add 99c) | R177: =IF((INT(R176)+0.99=0.99),0,(INT(R176)+0.99)) -> 0 | X177: x (add 99c) | Z177: =IF((INT(Z176)+0.99=0.99),0,(INT(Z176)+0.99)) -> 0 | AB177: x (add 99c) | AD177: =IF((INT(AD176)+0.99=0.99),0,(INT(AD176)+0.99)) -> 0 | AG177: x (add 99c) | AI177: =IF((INT(AI176)+0.99=0.99),0,(INT(AI176)+0.99)) -> 0 | AK177: x (add 99c) | AM177: =IF((INT(AM176)+0.99=0.99),0,(INT(AM176)+0.99)) -> 0
D178: a | F178: =IF(F176=0,0,VLOOKUP(F176,$D$8:$F$15,2)) -> 0 | J178: a | L178: =IF(L176=0,0,VLOOKUP(L176,$L$8:$N$13,2)) -> 0 | P178: a | R178: =IF(R176=0,0,VLOOKUP(R176,$D$8:$F$15,2)) -> 0 | X178: a | Z178: =IF(Z176=0,0,VLOOKUP(Z176,$L$8:$N$13,2)) -> 0 | AB178: a | AD178: =IF(AD176=0,0,VLOOKUP(AD176,$D$8:$F$15,2)) -> 0 | AG178: a | AI178: =IF(AI176=0,0,VLOOKUP(AI176,$L$8:$N$13,2)) -> 0 | AK178: a | AM178: =IF(AM176=0,0,VLOOKUP(AM176,$D$8:$F$15,2)) -> 0
D179: b | F179: =IF(F176=0,0,VLOOKUP(F176,$D$8:$F$15,3)) -> 0 | J179: b | L179: =IF(L176=0,0,VLOOKUP(L176,$L$8:$N$13,3)) -> 0 | P179: b | R179: =IF(R176=0,0,VLOOKUP(R176,$D$8:$F$15,3)) -> 0 | X179: b | Z179: =IF(Z176=0,0,VLOOKUP(Z176,$L$8:$N$13,3)) -> 0 | AB179: b | AD179: =IF(AD176=0,0,VLOOKUP(AD176,$D$8:$F$15,3)) -> 0 | AG179: b | AI179: =IF(AI176=0,0,VLOOKUP(AI176,$L$8:$N$13,3)) -> 0 | AK179: b | AM179: =IF(AM176=0,0,VLOOKUP(AM176,$D$8:$F$15,3)) -> 0
D180: y=ax-b (Weekly Tax) | F180: =ROUND(((F178*F177)-F179),0) -> 0 | J180: y=ax-b (Weekly Tax) | L180: =ROUND(((L178*L177)-L179),0) -> 0 | P180: y=ax-b (Weekly Tax) | R180: =ROUND(((R178*R177)-R179),0) -> 0 | X180: y=ax-b (Weekly Tax) | Z180: =ROUND(((Z178*Z177)-Z179),0) -> 0 | AB180: y=ax-b (Weekly Tax) | AD180: =ROUND(((AD178*AD177)-AD179),0) -> 0 | AG180: y=ax-b (Weekly Tax) | AI180: =ROUND(((AI178*AI177)-AI179),0) -> 0 | AK180: y=ax-b (Weekly Tax) | AM180: =ROUND(((AM178*AM177)-AM179),0) -> 0
D181: Weekly Pay | F181: =F176-F180 -> 0 | J181: Weekly Pay | L181: =L176-L180 -> 0 | P181: Weekly Pay | R181: =R176-R180 -> 0 | X181: Weekly Pay | Z181: =Z176-Z180 -> 0 | AB181: Weekly Pay | AD181: =AD176-AD180 -> 0 | AG181: Weekly Pay | AI181: =AI176-AI180 -> 0 | AK181: Weekly Pay | AM181: =AM176-AM180 -> 0
D182: Monthly Tax | F182: =ROUND(((F180*13)/3),0) -> 0 | J182: Monthly Tax | L182: =ROUND(((L180*13)/3),0) -> 0 | P182: Monthly Tax | R182: =ROUND(((R180*13)/3),0) -> 0 | X182: Monthly Tax | Z182: =ROUND(((Z180*13)/3),0) -> 0 | AB182: Monthly Tax | AD182: =ROUND(((AD180*13)/3),0) -> 0 | AG182: Monthly Tax | AI182: =ROUND(((AI180*13)/3),0) -> 0 | AK182: Monthly Tax | AM182: =ROUND(((AM180*13)/3),0) -> 0
D183: Monthly Pay | F183: =('Income Data'!$U21+'Income Data'!$V21+'Income Data'!$W21+'Income Data'!$X21)-F182 -> 0 | J183: Monthly Pay | L183: =('Income Data'!$Z21+'Income Data'!$AA21+'Income Data'!$AB21+'Income Data'!$AC21)-L182 -> 0 | P183: Monthly Pay | R183: =('Income Data'!$AE21+'Income Data'!$AF21+'Income Data'!$AG21+'Income Data'!$AH21)-R182 -> 0 | X183: Monthly Pay | Z183: =('Income Data'!$Z22+'Income Data'!$AA22+'Income Data'!$AB22+'Income Data'!$AC22)-Z182 -> 0 | AB183: Monthly Pay | AD183: =('Income Data'!$AE22+'Income Data'!$AF22+'Income Data'!$AG22+'Income Data'!$AH22)-AD182 -> 0 | AG183: Monthly Pay | AI183: =('Income Data'!$Z23+'Income Data'!$AA23+'Income Data'!$AB23+'Income Data'!$AC23)-AI182 -> 0 | AK183: Monthly Pay | AM183: =('Income Data'!$AE23+'Income Data'!$AF23+'Income Data'!$AG23+'Income Data'!$AH23)-AM182 -> 0
D194: Convert Monthly figure from Income Data to Weekly | J194: Convert Monthly figure from Income Data to Weekly | P194: Convert Monthly figure from Income Data to Weekly | X194: Convert Monthly figure from Income Data to Weekly | AB194: Convert Monthly figure from Income Data to Weekly | AG194: Convert Monthly figure from Income Data to Weekly | AK194: Convert Monthly figure from Income Data to Weekly
D195: per annum | F195: =IF('Income Data'!C53=1,(('Income Data'!X21*3)/13),0) -> 0 | J195: per annum | L195: =IF('Income Data'!C53=2,(('Income Data'!AC21*3)/13),0) -> 0 | P195: per annum | R195: =IF('Income Data'!C53=3,(('Income Data'!AH21*3)/13),0) -> 0 | X195: per annum | Z195: =IF('Income Data'!F53=1,(('Income Data'!AC22*3)/13),0) -> 0 | AB195: per annum | AD195: =IF('Income Data'!F53=2,(('Income Data'!AH22*3)/13),0) -> 0 | AG195: per annum | AI195: =IF('Income Data'!I53=1,(('Income Data'!AC23*3)/13),0) -> 0 | AK195: per annum | AM195: =IF('Income Data'!I53=2,(('Income Data'!AH23*3)/13),0) -> 0
D196: per month | F196: =IF('Income Data'!C53=1,(('Income Data'!W21*3)/13),0) -> 0 | J196: per month | L196: =IF('Income Data'!C53=2,(('Income Data'!AB21*3)/13),0) -> 0 | P196: per month | R196: =IF('Income Data'!C53=3,(('Income Data'!AG21*3)/13),0) -> 0 | X196: per month | Z196: =IF('Income Data'!F53=1,(('Income Data'!AB22*3)/13),0) -> 0 | AB196: per month | AD196: =IF('Income Data'!F53=2,(('Income Data'!AG22*3)/13),0) -> 0 | AG196: per month | AI196: =IF('Income Data'!I53=1,(('Income Data'!AB23*3)/13),0) -> 0 | AK196: per month | AM196: =IF('Income Data'!I53=2,(('Income Data'!AG23*3)/13),0) -> 0
D197: per fortnight | F197: =IF('Income Data'!C53=1,(('Income Data'!V21*3)/13),0) -> 0 | J197: per fortnight | L197: =IF('Income Data'!C53=2,(('Income Data'!AA21*3)/13),0) -> 0 | P197: per fortnight | R197: =IF('Income Data'!C53=3,(('Income Data'!AF21*3)/13),0) -> 0 | X197: per fortnight | Z197: =IF('Income Data'!F53=1,(('Income Data'!AA22*3)/13),0) -> 0 | AB197: per fortnight | AD197: =IF('Income Data'!F53=2,(('Income Data'!AF22*3)/13),0) -> 0 | AG197: per fortnight | AI197: =IF('Income Data'!I53=1,(('Income Data'!AA23*3)/13),0) -> 0 | AK197: per fortnight | AM197: =IF('Income Data'!I53=2,(('Income Data'!AF23*3)/13),0) -> 0
D198: per week | F198: =IF('Income Data'!C53=1,(('Income Data'!U21*3)/13),0) -> 0 | J198: per week | L198: =IF('Income Data'!C53=2,(('Income Data'!Z21*3)/13),0) -> 0 | P198: per week | R198: =IF('Income Data'!C53=3,(('Income Data'!AE21*3)/13),0) -> 0 | X198: per week | Z198: =IF('Income Data'!F53=1,(('Income Data'!Z22*3)/13),0) -> 0 | AB198: per week | AD198: =IF('Income Data'!F53=2,(('Income Data'!AE22*3)/13),0) -> 0 | AG198: per week | AI198: =IF('Income Data'!I53=1,(('Income Data'!Z23*3)/13),0) -> 0 | AK198: per week | AM198: =IF('Income Data'!I53=2,(('Income Data'!AE23*3)/13),0) -> 0
F199: =F195+F196+F197+F198 -> 0 | L199: =L195+L196+L197+L198 -> 0 | R199: =R195+R196+R197+R198 -> 0 | Z199: =Z195+Z196+Z197+Z198 -> 0 | AD199: =AD195+AD196+AD197+AD198 -> 0 | AI199: =AI195+AI196+AI197+AI198 -> 0 | AM199: =AM195+AM196+AM197+AM198 -> 0
D204: Income to Use | E204: Monthly
D205: Weekly | E205: =IF('Income Data'!S154=1,'Tax Rates'!V196,0) -> 0
D206: Fortnightly | E206: =IF('Income Data'!S154=2,'Tax Rates'!R196,0) -> 0
D207: Monthly | E207: =IF('Income Data'!S154=3,'Tax Rates'!L196,0) -> 0
D208: Annually | E208: =IF('Income Data'!S154=4,'Tax Rates'!F196,0) -> 0
D209: USE | E209: =E205+E206+E207+E208 -> 0

Sheet General Living Expenses (hidden)
A1: Number of Borrowers
A2: 1 | B2: 1
A3: 2
A4: 3 | C4: =IF(B2=1,"No",IF(B2=2,"No","Yes")) -> No
A5: 4 | C5: =IF(B2=4,"Yes","No") -> No
B6: Expense Application type
B7: Borrower 1 | H7: Borrower 2 | N7: Borrower 3 | T7: Borrower 4
B8: Index | C8: Options | D8: Current | H8: Index | I8: Options | J8: Current | N8: Index | O8: Options | P8: Current | T8: Index | U8: Options | V8: Current
B9: 1 | C9: Single | D9: 1 | H9: 1 | I9: Single | J9: 3 | N9: 1 | O9: Single | P9: 3 | T9: 1 | U9: Single | V9: 3
B10: 2 | C10: Married or Defacto | H10: 2 | I10: Married or Defacto | N10: 2 | O10: Married or Defacto | T10: 2 | U10: Married or Defacto
I11: N/A | O11: N/A | U11: N/A
B12: Joint Loan with Spouse | H12: Joint Loan with Spouse | N12: Joint Loan with Spouse | T12: Joint Loan with Spouse
C13: N/A | D13: 1 | I13: N/A | J13: 1 | O13: N/A | P13: 1 | U13: N/A | V13: 1
C14: Co-Applicant (borrower 2) | I14: Co-Applicant (borrower 1) | O14: Co-Applicant (borrower 4) | U14: Co-Applicant (borrower 3)
C15: Non-Loan Party | I15: Non-Loan Party | O15: Non-Loan Party | U15: Non-Loan Party
B16: Proposed Living Expense (Net Yearly Income less than $100k)
B17: New Dependants
B18: Index | C18: Options | D18: Single | E18: Couple | F18: N/A
B19: 1 | C19: 0 | D19: 1354 | E19: 2508 | F19: 0 | G19: 1 | M19: 1 | S19: 1 | Y19: 1
B20: 2 | C20: 1 | D20: 1670 | E20: 3100 | F20: 0 | J20: Combined Dependants | M20: =IF(D13=2,(M19-1)+(G19-1),M19-1) -> 0 | W20: Combined Dependants (3 and 4) | Y20: =IF(P13=2,(S19-1) + (Y19-1),Y19-1) -> 0
B21: 3 | C21: 2 | D21: 2074 | E21: 3692 | F21: 0
B22: 4 | C22: 3 | D22: 2208 | E22: 3867 | F22: 0
B23: 5 | C23: 4 | D23: 2779 | E23: 4438 | F23: 0
B24: 6 | C24: 5 | D24: =D23+D$46 -> 3350 | E24: =E23+E$46 -> 5009 | F24: 0
B25: 7 | C25: 6 | D25: =D24+D$46 -> 3921 | E25: =E24+E$46 -> 5580 | F25: 0
B26: 8 | C26: 7 | D26: 4492 | E26: 6151 | F26: 0
B27: 9 | C27: 8 | D27: 5063 | E27: 6722 | F27: 0
B28: 10 | C28: 9 | D28: 5634 | E28: 7293 | F28: 0
B29: 11 | C29: 10 | D29: 6205 | E29: 7864 | F29: 0
B31: Proposed Living Expense (Net Yearly Income greater than and equal to $100k)
B32: New Dependants
B33: Index | C33: Options | D33: Single | E33: Couple | F33: N/A
B34: 1 | C34: 0 | D34: 2199 | E34: 3071 | F34: 0 | G34: 1 | M34: 1 | S34: 1 | Y34: 1
B35: 2 | C35: 1 | D35: 2457 | E35: 3246 | F35: 0
B36: 3 | C36: 2 | D36: 2821 | E36: 3777 | F36: 0
B37: 4 | C37: 3 | D37: 2962 | E37: 4023 | F37: 0
B38: 5 | C38: 4 | D38: 3533 | E38: 4594 | F38: 0
B39: 6 | C39: 5 | D39: =D38+D$46 -> 4104 | E39: =E38+E$46 -> 5165 | F39: 0
B40: 7 | C40: 6 | D40: =D39+D$46 -> 4675 | E40: =E39+E$46 -> 5736 | F40: 0
B41: 8 | C41: 7 | D41: 5246 | E41: 6307 | F41: 0
B42: 9 | C42: 8 | D42: 5817 | E42: 6878 | F42: 0
B43: 10 | C43: 9 | D43: 6388 | E43: 7449 | F43: 0
B44: 11 | C44: 10 | D44: 6959 | E44: 8020 | F44: 0
B46: Additional cost (>4 dependants) | D46: 571 | E46: 571
B47: Non-income earning property expense per property | D47: 230
D48: Yearly assessble income | J48: Yearly assessble income | P48: Yearly assessble income | V48: Yearly assessble income
B49: Assessable Income | C49: ='Income Data'!U33 -> 0 | D49: =C49*12 -> 0 | H49: Assessable Income | I49: ='Income Data'!W33 -> 0 | J49: =I49*12 -> 0 | N49: Assessable Income | O49: ='Income Data'!Y33 -> 0 | P49: =O49*12 -> 0 | T49: Assessable Income | U49: ='Income Data'!AA33 -> 0 | V49: =U49*12 -> 0
B51: Orig Living Expense | C51: =IF(D9=1,(IF(D49<100000,VLOOKUP(G19-1,C19:F29,2,FALSE),VLOOKUP(G19-1,C34:F44,2,FALSE))),IF(D13=2,(IF(D49+J49<100000,VLOOKUP(G19-1,C19:F29,3,FALSE),VLOOKUP(G19-1,C34:F44,3,FALSE))),(IF(D49<100000,VLOOKUP(G19-1,C19:F29,3,FALSE),VLOOKUP(G19-1,C34:F44,3,FALSE))))) -> 1354 | H51: Living Expense | I51: =IF(J9=1,(IF(J49<100000,VLOOKUP(M20,C19:F29,2,FALSE), VLOOKUP(M20,C34:F44,2,FALSE))),IF(J13=2, (IF((D49+J49)<100000,VLOOKUP(M20,C19:F29,3,FALSE), VLOOKUP(M20,C34:F44,3,FALSE))), IF(J9 = 3,0,(IF(J49<100000,VLOOKUP(M20,C19:F29,3,FALSE),VLOOKUP(M20,C34:F44,3,FALSE)))))) -> 0 | N51: Living Expense | O51: =IF(P9=1,(IF(P49<100000,VLOOKUP(S19-1,C19:F29,2,FALSE), VLOOKUP(S19-1,C34:F44,2,FALSE))),IF(P13=2,(IF((P49+V49)<100000,VLOOKUP(S19-1,C19:F29,3,FALSE), VLOOKUP(S19-1,C34:F44,3,FALSE))), IF(P9=3,0,(IF(P49<100000,VLOOKUP(S19-1,C19:F29,3,FALSE), VLOOKUP(S19-1,C34:F44,3,FALSE)))))) -> 0 | T51: Living Expense | U51: =IF(V9=1,(IF(V49<100000,VLOOKUP(Y20,C19:F29,2,FALSE), VLOOKUP(Y20,C34:F44,2,FALSE))),IF(V13=2,(IF((P49+V49)<100000,VLOOKUP(Y20,C19:F29,3,FALSE), VLOOKUP(Y20,C34:F44,3,FALSE))), IF(V9=3,0,(IF(P49<100000,VLOOKUP(Y20,C19:F29,3,FALSE), VLOOKUP(Y20,C34:F44,3,FALSE)))))) -> 0
O52: `
B53: Non-Income Pty Expense | C53: =($D$53*'General Living Expenses'!D47)-'General Living Expenses'!D47 -> 0 | D53: 1 | H53: Non-Income Pty Expense | I53: =($J$53*'General Living Expenses'!$D$47) - 'General Living Expenses'!$D$47 -> 0 | J53: 1 | N53: Non-Income Pty Expense | O53: =($P$53*'General Living Expenses'!$D$47)-'General Living Expenses'!$D$47 -> 0 | P53: 1 | T53: Non-Income Pty Expense | U53: =($V$53*'General Living Expenses'!$D$47)-'General Living Expenses'!$D$47 -> 0 | V53: 1
B55: Total Expense | C55: =C51+C53 + (IF(AND(J13=2, J9 = 2,D9=2,D13 = 2),(I51-C51),0)) -> 1354 | H55: Expense to Use | I55: =I51+I53 + (IF(AND(J13=2, J9 = 2,D9=2,D13=2),-I51,0)) -> 0 | N55: Expense to Use | O55: =O51+O53 + (IF(AND(V13=2, V9 = 2, P9= 2, P13 = 2),(U51-O51),0)) -> 0 | U55: =U51+U53 + (IF(AND(V13=2, V9 = 2,P9=2, P13=2),-U51,0)) -> 0
B57: Combined Expense | C57: =C55+I55+O55+U55 -> 1354

Sheet Other Expenses (hidden)
A1: Borrower 1
B2: Rent/Board | D2: Frequency | H2: Other Expense 2 | J2: Frequency | L2: Other Expense 3 | N2: Frequency | R2: Minimum Board | U2: Credit Card Repayment Period (mths) | V2: Credit Card Repayment Rate
B3: Rent | C3: 3 | D3: Weekly | E3: 3 | H3: Private School Fees | I3: 5 | J3: Weekly | K3: 3 | L3: Private School Fees | M3: 5 | N3: Weekly | O3: 3 | U3: 36 | V3: 0.22
B4: Board | D4: Fortnightly | H4: Child Support/Maintenance | J4: Fortnightly | L4: Child Support/Maintenance | N4: Fortnightly
B5: N/A | D5: Monthly | H5: HECS/HELP | J5: Monthly | L5: HECS/HELP | N5: Monthly | U5: Beyond Bank Credit Card Repayment Period (mths) | V5: Beyond Bank Credit Card Repayment Rate
H6: Other | L6: Other | U6: 36 | V6: 0.22
A7: Amount | B7: ='Loan Affordability Calculator'!$B$32 -> 0 | H7: N/A | L7: N/A
A8: Used | B8: =IF(E3=1,B7*52/12,IF(E3=2,B7*26/12,IF(E3=3,B7,0))) -> 0
G9: Amount | H9: ='Loan Affordability Calculator'!$B$33 -> 0 | K9: Amount | L9: ='Loan Affordability Calculator'!$B$34 -> 0
G10: Used | H10: =IF(K3=1,H9*52/12,IF(K3=2,H9*26/12,IF(K3=3,H9,0))) -> 0 | K10: Used | L10: =IF(O3=1,L9*52/12,IF(O3=2,L9*26/12,IF(O3=3,L9,0))) -> 0
B12: Car/Personal Loan | D12: Other debts
B13: Weekly | C13: 3 | D13: Weekly | E13: 3
B14: Fortnightly | D14: Fortnightly | L14: Total Expenses/Liabilities
B15: Monthly | D15: Monthly | L15: =B8+H10+L10+B18+D18+H18+J18+K18 -> 0
H16: Credit Card | J16: Overdraft | K16: BB Credit Card
A17: Amount | B17: ='Loan Affordability Calculator'!B37 -> 0 | D17: ='Loan Affordability Calculator'!B41 -> 0 | H17: ='Loan Affordability Calculator'!B38 -> 0 | J17: ='Loan Affordability Calculator'!B39 -> 0 | K17: ='Loan Affordability Calculator'!B40 -> 0
A18: Used | B18: =IF(C13=1,B17*52/12,IF(C13=2,B17*26/12,IF(C13=3,B17,0))) -> 0 | D18: =IF(E13=1,D17*52/12,IF(E13=2,D17*26/12,IF(E13=3,D17,0))) -> 0 | H18: =-PMT(V3/12,U3,H17) -> 0 | J18: =J17*3% -> 0 | K18: =-PMT($V$6/12,$U$6,K17) -> 0
A22: Borrower 2
B23: Rent/Board | D23: Frequency | H23: Other Expense 2 | J23: Frequency | L23: Other Expense 3 | N23: Frequency
B24: Rent | C24: 3 | D24: Weekly | E24: 3 | H24: Private School Fees | I24: 5 | J24: Weekly | K24: 3 | L24: Private School Fees | M24: 5 | N24: Weekly | O24: 3
B25: Board | D25: Fortnightly | H25: Child Support/Maintenance | J25: Fortnightly | L25: Child Support/Maintenance | N25: Fortnightly
B26: N/A | D26: Monthly | H26: HECS/HELP | J26: Monthly | L26: HECS/HELP | N26: Monthly
H27: Other | L27: Other
A28: Amount | B28: ='Loan Affordability Calculator'!B59 -> 0 | H28: N/A | L28: N/A
A29: Used | B29: =IF(E24=1,B28*52/12,IF(E24=2,B28*26/12,IF(E24=3,B28,0))) -> 0
G30: Amount | H30: ='Loan Affordability Calculator'!B60 -> 0 | K30: Amount | L30: ='Loan Affordability Calculator'!$B$61 -> 0
G31: Used | H31: =IF(K24=1,H30*52/12,IF(K24=2,H30*26/12,IF(K24=3,H30,0))) -> 0 | K31: Used | L31: =IF(O24=1,L30*52/12,IF(O24=2,L30*26/12,IF(O24=3,L30,0))) -> 0
B33: Car/Personal Loan | D33: Other debts
B34: Weekly | C34: 3 | D34: Weekly | E34: 3
B35: Fortnightly | D35: Fortnightly | L35: Total Expenses/Liabilities
B36: Monthly | D36: Monthly | L36: =B29+H31+L31+B39+D39+H39+J39+K39 -> 0
H37: Credit Card | J37: Overdraft | K37: BB Credit Card
A38: Amount | B38: ='Loan Affordability Calculator'!B64 -> 0 | D38: ='Loan Affordability Calculator'!B68 -> 0 | H38: ='Loan Affordability Calculator'!B65 -> 0 | J38: ='Loan Affordability Calculator'!B66 -> 0 | K38: ='Loan Affordability Calculator'!B67 -> 0
A39: Used | B39: =IF(C34=1,B38*52/12,IF(C34=2,B38*26/12,IF(C34=3,B38,0))) -> 0 | D39: =IF(E34=1,D38*52/12,IF(E34=2,D38*26/12,IF(E34=3,D38,0))) -> 0 | H39: =-PMT(V3/12,U3,H38) -> 0 | J39: =J38*3% -> 0 | K39: =-PMT($V$6/12,$U$6,K38) -> 0
A42: Borrower 3
B43: Rent/Board | D43: Frequency | H43: Other Expense 2 | J43: Frequency | L43: Other Expense 3 | N43: Frequency
B44: Rent | C44: 3 | D44: Weekly | E44: 3 | H44: Private School Fees | I44: 1 | J44: Weekly | K44: 3 | L44: Private School Fees | M44: 5 | N44: Weekly | O44: 3
B45: Board | D45: Fortnightly | H45: Child Support/Maintenance | J45: Fortnightly | L45: Child Support/Maintenance | N45: Fortnightly
B46: N/A | D46: Monthly | H46: HECS/HELP | J46: Monthly | L46: HECS/HELP | N46: Monthly
H47: Other | L47: Other
A48: Amount | B48: ='Loan Affordability Calculator'!$B$86 -> 0 | H48: N/A | L48: N/A
A49: Used | B49: =IF(E44=1,B48*52/12,IF(E44=2,B48*26/12,IF(E44=3,B48,0))) -> 0
G50: Amount | H50: ='Loan Affordability Calculator'!$B$87 -> 0 | K50: Amount | L50: ='Loan Affordability Calculator'!$B$88 -> 0
G51: Used | H51: =IF(K44=1,H50*52/12,IF(K44=2,H50*26/12,IF(K44=3,H50,0))) -> 0 | K51: Used | L51: =IF(O44=1,L50*52/12,IF(O44=2,L50*26/12,IF(O44=3,L50,0))) -> 0
B53: Car/Personal Loan | D53: Other debts
B54: Weekly | C54: 3 | D54: Weekly | E54: 3
B55: Fortnightly | D55: Fortnightly | L55: Total Expenses/Liabilities
B56: Monthly | D56: Monthly | L56: =B49+H51+L51+B59+D59+H59+J59+K59 -> 0
H57: Credit Card | J57: Overdraft | K57: BB Credit Card
A58: Amount | B58: ='Loan Affordability Calculator'!B90 -> 0 | D58: ='Loan Affordability Calculator'!B94 -> 0 | H58: ='Loan Affordability Calculator'!B91 -> 0 | J58: ='Loan Affordability Calculator'!B92 -> 0 | K58: ='Loan Affordability Calculator'!B93 -> 0
A59: Used | B59: =IF(C54=1,B58*52/12,IF(C54=2,B58*26/12,IF(C54=3,B58,0))) -> 0 | D59: =IF(E54=1,D58*52/12,IF(E54=2,D58*26/12,IF(E54=3,D58,0))) -> 0 | H59: =-PMT(V3/12,U3,H58) -> 0 | J59: =J58*3% -> 0 | K59: =-PMT($V$6/12,$U$6,K58) -> 0
A62: Borrower 4
B63: Rent/Board | D63: Frequency | H63: Other Expense 2 | J63: Frequency | L63: Other Expense 3 | N63: Frequency
B64: Rent | C64: 3 | D64: Weekly | E64: 3 | H64: Private School Fees | I64: 5 | J64: Weekly | K64: 3 | L64: Private School Fees | M64: 5 | N64: Weekly | O64: 3
B65: Board | D65: Fortnightly | H65: Child Support/Maintenance | J65: Fortnightly | L65: Child Support/Maintenance | N65: Fortnightly
B66: N/A | D66: Monthly | H66: HECS/HELP | J66: Monthly | L66: HECS/HELP | N66: Monthly
H67: Other | L67: Other
A68: Amount | B68: ='Loan Affordability Calculator'!B111 -> 0 | H68: N/A | L68: N/A
A69: Used | B69: =IF(E64=1,B68*52/12,IF(E64=2,B68*26/12,IF(E64=3,B68,0))) -> 0
G70: Amount | H70: ='Loan Affordability Calculator'!B112 -> 0 | K70: Amount | L70: ='Loan Affordability Calculator'!B113 -> 0
G71: Used | H71: =IF(K64=1,H70*52/12,IF(K64=2,H70*26/12,IF(K64=3,H70,0))) -> 0 | K71: Used | L71: =IF(O64=1,L70*52/12,IF(O64=2,L70*26/12,IF(O64=3,L70,0))) -> 0
B73: Car/Personal Loan | D73: Other debts
B74: Weekly | C74: 3 | D74: Weekly | E74: 3
B75: Fortnightly | D75: Fortnightly | L75: Total Expenses/Liabilities
B76: Monthly | D76: Monthly | L76: =B69+H71+L71+B79+D79+H79+J79+K79 -> 0
H77: Credit Card | J77: Overdraft | K77: BB Credit Card
A78: Amount | B78: ='Loan Affordability Calculator'!B115 -> 0 | D78: ='Loan Affordability Calculator'!B119 -> 0 | H78: ='Loan Affordability Calculator'!B116 -> 0 | J78: ='Loan Affordability Calculator'!B117 -> 0 | K78: ='Loan Affordability Calculator'!B118 -> 0
A79: Used | B79: =IF(C74=1,B78*52/12,IF(C74=2,B78*26/12,IF(C74=3,B78,0))) -> 0 | D79: =IF(E74=1,D78*52/12,IF(E74=2,D78*26/12,IF(E74=3,D78,0))) -> 0 | H79: =-PMT(V3/12,U3,H78) -> 0 | J79: =J78*3% -> 0 | K79: =-PMT($V$6/12,$U$6,K78) -> 0

Sheet Minimum Board & Rent (hidden)
C2: Minimum Weekly Amount
B3: Board

Sheet General list options (hidden)
A1: Sheet | B1: Field | C1: Input Range | D1: Cell Link (selection from drop down list - i.e. the position not the value)
A2: Loan Affordability Calculator | B2: Number of Loans | C2: 1 | D2: 1
C3: 2
C4: 3
C5: 4
A7: Loan Affordability Calculator | B7: Interest Only Term (Yrs) | C7: 0 | D7: 1 | E7: =INDEX($C$7:$C$17,D7) -> 0 | F7: Loan 1 Value
C8: 1 | D8: 1 | E8: =INDEX($C$7:$C$17,D8) -> 0 | F8: Loan 2 Value
C9: 2 | D9: 1 | E9: =INDEX($C$7:$C$17,D9) -> 0 | F9: Loan 3 Value
C10: 3 | D10: 1 | E10: =INDEX($C$7:$C$17,D10) -> 0 | F10: Loan 4 Value
C11: 4
C12: 5
C13: 6
C14: 7
C15: 8
C16: 9
C17: 10
